Workbook

Sheet Enable Macros
C3: Introduction to the schools resource management self-assessment tool
C5: The school resource management self-assessment tool helps to provide trusts with assurance that they are meeting the basic standards necessary to achieve a good level of financial health and resource management. The tool can be used to identify possible areas for change to ensure that resources are being used to support high-quality teaching and the best education outcomes for pupils. The tool is in two parts:
C6: 1. A checklist, which asks a number of questions of trust boards in six areas of resource management to provide assurance that the trust is managing its resources effectively. This should be completed at trust level.
C7: 2. A dashboard, which shows how a school's data compares to thresholds on a range of statistics that have been identified as indicators for good resource management and outcomes. This should be completed at school level.
C8: Completion of the self-assessment tool is compulsory for all academy trusts. This document includes pre-populated dashboard(s) for the school(s) in your trust to support the completion and analysis of the tool.
C11: To ensure that the workbook functions as anticipated, Macros must be enabled
D13: Step by step guide to enabling macros:
D14: 1) Click the enable content button appearing in the banner below the ribbon 2) Macros should now be enabled, the user can click here to access all features of the file. Should this not work, please follow the steps below in order to enable Macros:
D15: 1) The User will need to add the developer tab to their ribbon: a. The user should click the file button b. The user should then navigate to the ‘Options’ section c. The user should then click the ‘Customise ribbon’ section d. The user should select and add the ‘developer’ section to their ribbon 2) The user will need to navigate to the developer section of the ribbon 3) The user should then click ‘Macro Security’ 4) The user should then click ‘Enable all Macros’ 5) Macros should now be enabled, the user can click here to access all features of the file.

Sheet Introduction and outcomes (hidden)
C3: Introduction to the schools resource management self-assessment tool
C5: The school resource management self-assessment tool helps to provide trusts with assurance that they are meeting the basic standards necessary to achieve a good level of financial health and resource management. The tool can be used to identify possible areas for change to ensure that resources are being used to support high-quality teaching and the best education outcomes for pupils. The tool is in two parts:
C6: 1. A checklist, which asks a number of questions of trust boards in six areas of resource management to provide assurance that the trust is managing its resources effectively. This should be completed at trust level.
C7: 2. A dashboard, which shows how a school's data compares to thresholds on a range of statistics that have been identified as indicators for good resource management and outcomes. This should be completed at school level.
C8: Completion of the self-assessment tool is compulsory for all academy trusts. This document includes pre-populated dashboard(s) for the school(s) in your trust to support the completion and analysis of the tool.
C11: Outcome of school resource management self-assessment
C13: Summary of agreed action and timetable for reporting back:
C14: [enter text]
C16: Signature: | O16: Chair of trust board
C18: Full name of signatory:
C20: Date self-assessment agreed:

Sheet Checklist (hidden)
C3: School resource management self-assessment checklist
C5: The checklist asks a number of questions of trust boards in six areas of resource management to help provide assurance that resources are being managed effectively. In 2021-22 the deadline for submission of the self-assessment checklist is 15th April. This downloaded form can be used to prepare for the return or to assess use of resources at various points throughout the year. The checklist should be completed at academy trust level.
C6: Guidance on completion of this document can be found here. This guidance also includes examples of good practice and details further support available to assist trusts in addressing specific issues. Clicking on the individual questions below will also take you to the relevant section of the guidance.
C7: Trusts should answer each question with 'yes', 'no', or 'in part' from the drop down lists provided, or with a number, as appropriate. If a trust answers 'no' or 'in part' to a question, they must provide a target date and comments. Trusts may also provide comments, evidence and proposed actions for 'yes' answers.
C9: Trust name: | G9: Shenfield High School
M12: Answer (yes, in part, no) | O12: Target date | Q12: Comments, evidence and proposed actions
C13: A. Governance
C16: 1 | D16: Have the Chief Financial Officer, Accounting Officer and chair of trustees read the current edition of the Academies Financial Handbook? | K16: Q1 guidance | M16: Yes
C17: 1A | D17: Do they understand their role in complying with the trust’s charitable objects, with company and charity law, and with the funding agreement? | K17: Q1A guidance | M17: Yes
C18: 2 | D18: Has the board assessed its composition during the year in terms of skills, effectiveness, leadership and impact? | K18: Q2 guidance | M18: Yes
C19: 3 | D19: Does the board have a plan in place to address any gaps in its capabilities through recruitment, induction, training or other development activity? | K19: Q3 guidance | M19: Yes
C20: 4 | D20: Has the board appointed the senior executive leader as accounting officer? | K20: Q4 guidance | M20: Yes
C21: 4A | D21: Has the board assured itself that the senior leader has appropriate skills to fulfill their role as accounting officer in accordance with the financial responsibilities of the duty to the public purse? | K21: Q4A guidance | M21: Yes
C22: 5 | D22: Has the board appointed a qualified and/or experienced chief financial officer? | K22: Q5 guidance | M22: Yes
C23: 6 | D23: Has the board appointed a clerk who is someone other than a trustee, principal or chief executive of the trust? | K23: Q6 guidance | M23: Yes
C24: 7 | D24: How many times has the board met in the last year? | K24: Q7 guidance | M24: 3 | Q24: Plus regular Reports through lockdown periods.
C25: 7A | D25: If less than 6 times, has the board explained in the governance statement how it has maintained effective oversight? (Not applicable answer available) | K25: Q7A guidance | M25: Yes
C26: 8 | D26: Has the trust held an Annual General Meeting (AGM) with members in the last 12 months? | K26: Q8 guidance | M26: Yes
C27: 8A | D27: (If answering "no") Please provide details of any alternative arrangements for communicating with members. | K27: Q8 guidance
C28: 8B | D28: (If answering "yes") What percentage of members attended the AGM? | K28: Q8 guidance | M28: 100
C29: 9 | D29: Has the board approved a written scheme of financial delegations? | K29: Q9 guidance | M29: Yes
C30: 10 | D30: Does the trust have a finance committee (or equivalent) with clear terms of reference and a knowledgeable and experienced chair? | K30: Q10 guidance | M30: Yes
C31: 11 | D31: Does the trust have an audit and risk committee? | K31: Q11 guidance | M31: Yes
C32: 11A | D32: Does the audit and risk committee reflect minimum good practice by precluding employees from its membership? | K32: Q11 guidance | M32: Yes
C33: 11B | D33: How many times has the audit and risk committee met in the last 12 months? | K33: Q11 guidance | M33: 4
C34: 12 | D34: Are trustees assured that regular risk assessment process is in place, and that mitigations planned are appropriate/interrogated? | K34: Q12 guidance | M34: Yes
C35: 13 | D35: Does the academy trust operate in accordance with all of the requirements in the Academies Financial Handbook to identify and avoid conflicts of interest, and to report and manage and related party transactions? | K35: Q13 guidance | M35: Yes
C36: 14 | D36: Has the trust published its governance arrangements on its website in accordance with the Academies Financial Handbook? | K36: Q14 guidance | M36: Yes
C38: B. Trust financial strategy
C40: 15 | D40: Has the board of trustees carried out a going concern assessment of the trust to inform the basis of the preparation for financial statements? | K40: Q15 guidance | M40: Yes
C41: 15A | D41: (If "yes") Can the board clearly evidence the information and data used to inform this assessment and the assumptions made? | K41: Q15A guidance | M41: Yes | Q41: MWS Financial Statements and Audit Reports
C42: 16 | D42: Can the trust evidence that its 3-year financial forecast has been reviewed by the trustees before approval? | K42: Q16 guidance | M42: Yes
C43: 17 | D43: Can the trust evidence that trustees have taken financial performance in previous years into account (for example, adjustments for areas of significant underspend or overspend)? | K43: Q17 guidance | M43: Yes
C44: 18 | D44: Are the assumptions behind the 3-year forecast, including pupil number projections, documented? | K44: Q18 guidance | M44: Yes
C45: 19 | D45: If a cumulative deficit has been forecast within the 3-year budget, is there a plan to mitigate it? (Not applicable answer available) | K45: Q19 guidance | M45: Not applicable
C46: 20 | D46: Is the financial strategy integrated with the trust's strategy for raising standards and attainment? | K46: Q20 guidance | M46: Yes
C47: 21 | D47: Does the trust survey its physical estate and ensure appropriate capital provision in budget setting? | K47: Q21 guidance | M47: Yes | Q47: Yes but there is greater expenditure needed than funds available. We work hard on Cif and other grants to help with this.
C48: 21A | D48: Are trustees aware of their duties under health and safety legislation? | K48: Q21A guidance | M48: Yes
C49: 22 | D49: Does the school have an appropriate business continuity or disaster recovery plan, including an up-to-date asset register and adequate insurance? | K49: Q22 guidance | M49: Yes
C51: C. Setting the annual budget
C53: 23 | D53: Does the trust set a well-informed and balanced budget which is approved, in advance, by the board? | K53: Q23 guidance | M53: Yes
C54: 24 | D54: Does the budget setting process allow sufficient time for the trust board to scrutinise and challenge the information provided? | K54: Q24 guidance | M54: Yes
C55: 25 | D55: Do trustees challenge pupil number assumptions and can the trust move quickly to recast the budget if the projections and reality are materially different? | K55: Q25 guidance | M55: Yes
C56: 26 | D56: Is end year outturn in line with budget projections, or if not, is the trust board alerted to significant variations in a timely manner, and do they result from planned changes or from genuinely unforeseeable circumstances? | K56: Q26 guidance | M56: Yes | Q56: Virements
C57: 27 | D57: Are balances at a reasonable level and does the trust have a clear plan for using the money it plans to hold in balance at the end of each year? | K57: Q27 guidance | M57: Yes | Q57: Very tight balance this year due to lost income and cost of responding to Covid. Next year onwards is well planned and shows healthy expected balances.
C59: D. Staffing
C61: 28 | D61: Does the trust review and challenge its staffing structure regularly to ensure it is the best structure to meet the needs of the trust whilst maintaining financial integrity? | K61: Q28 guidance | M61: Yes
C62: 29 | D62: Is the pay of senior leaders tightly correlated to strong educational outcomes and sound financial management? | K62: Q29 guidance | M62: Yes
C63: 30 | D63: Does the trust benchmark the size of its senior leadership team annually against that of similar schools? | K63: Q30 guidance | M63: Yes | Q63: Benchmarking card and SRM Self-Assessment Return
C64: 31 | D64: Has the academy trust published on its website the number of employees whose total benefits exceeded £100k? | K64: Q31 guidance | M64: Yes
C66: E. Value for money
C68: 32 | D68: Does the trust benchmark its income and expenditure and that of its schools annually against that of similar trusts and schools and investigate further where any category appears to be out of line? | K68: Q32 guidance | M68: Yes
C69: 33 | D69: Does the trust have procedures for purchasing goods and services that both meet legal requirements and secure value for money? | K69: Q33 guidance | M69: Yes
C70: 34 | D70: Are the trustees given the opportunity to challenge their staff’s plans for replacing contracts for goods and services that are due to expire shortly? | K70: Q34 guidance | M70: In part | Q70: On major contracts going to tender, trustees are involved directly in the process. Other contacts over a set value are recorded and monitored on a contacts tracker which is reviewed annually by Resources Committee.
C71: 35 | D71: Does the trust consider collaboration with others, for example on sharing staff or joint purchasing, where that would improve value for money? | K71: Q35 guidance | M71: In part | Q71: This is considered and has been useful with purchases and contatracts in the past.
C72: 36 | D72: Does the trust compare its non-staff expenditure against the DfE recommended national deals to ensure you are achieving best value for money? | K72: Q36 guidance | M72: In part | Q72: Consortiums and DFE deals are considered alongside our won robust procurement procedures to achieve best value for money.
C74: F. Protecting public money
C76: 37 | D76: Are the trustees sure that there are no outstanding matters from audit reports? | K76: Q37 guidance | M76: Yes
C77: 38 | D77: Are the internal scrutiny arrangements, as defined in the Academies Financial Handbook, adhered to? | K77: Q38 guidance | M77: Yes
C78: 39 | D78: Does the trust regularly review its internal control arrangements to safeguard against fraud and theft, by staff, contractors, suppliers and other third parties? | K78: Q39 guidance | M78: Yes
C79: 40 | D79: Are all staff aware of the trust’s whistleblowing arrangements and to whom they should report concerns? | K79: Q40 guidance | M79: Yes
C80: 41 | D80: Does the trust have an accounting system that is adequate and properly run and delivers accurate reports, including the required returns to ESFA? | K80: Q41 guidance | M80: Yes | Q80: FMS is due to be replaced as much better options are now available.
C82: G. Self-assessment dashboard
C84: 42 | D84: Have the results of the self-assessment dashboard been carefully considered and potential follow-up actions identified? | K84: Q42 guidance | M84: Yes

Sheet Dashboard (hidden)
C3: School resource management self-assessment dashboard
C5: Effective resource management is about how a trust uses its resources to drive outcomes for its pupils. A trust can improve outcomes by using its resources more effectively. The dashboard below is designed to help trusts identify areas for improved resource management. It shows how a school compares to thresholds on a range of key indicators. | F5: Please enter your number of schools:
F6: 1
C11: A. Information about your school(s)
A12: * | F12: 1 | L12: 1
C13: Using the dashboard This dashboard has been populated with your 2019/20 accounts return, November 2019 school workforce census, 2019 performance tables, 2020 school census, and latest Ofsted rating. For MATs, any central trust spending recorded in your accounts return is disaggregated to the academies in the trust on a per-pupil basis. *Updated '% of pupils eligible for FSM' data on 22/02/21 | F13: School name: | H13: Shenfield High School | L13: School name:
F14: Phase: | H14: Secondary with sixth form | L14: Phase:
F15: Region: | H15: East of England | L15: Region:
F16: Number of pupils: | H16: 1343 | L16: Number of pupils:
F17: % of pupils eligible for FSM: | H17: 5.9% | L17: % of pupils eligible for FSM:
C19: The dashboard is completed at school level. It is not applicable for sixth form colleges. | F19: This school is being compared to other: | L19: This school is being compared to other:
F20: - a medium secondary with sixth form with low levels of FSM | L20: =IF(OR(N$14="",N$15="",N$16="",N$17=""),"", "- "&RAG_Calculation!$H30& IF(N14="Primary"," primary schools with ",IF(N14="Secondary with sixth form"," secondary schools with a sixth form with ",IF(N14="Secondary without sixth form"," secondary schools without a sixth form with ",IF(N14="Special","special schools",IF(N14="Alternative provision","alternative provision schools",IF(N14="All-through","all-through schools",IF(N14="Nursery","nursery schools","")))))))&RAG_Calculation!$I30) -> 
C21: To update the number of academies shown in the dashboard, change cell F6. Increasing the number will add additional input columns, decreasing the number will remove input columns. You must enter a number above 0. | F21: - a secondary school with a sixth form outside London(for average teacher cost only) | L21: =IF(OR(N$14="",N$15="",N$16="",N$17=""),"", IF(N14="Primary","- primary schools ",IF(N14="Secondary with sixth form","- secondary schools with a sixth form ",IF(N14="Secondary without sixth form","- secondary schools without a sixth form ",IF(N14="Special","- special schools ",IF(N14="Alternative provision","- alternative provision schools ",IF(N14="All-through","- all-through schools ",IF(N14="Nursery","- nursery schools ","")))))))&RAG_Calculation!$G30&" (for average teacher cost only)") -> 
C22: Complete all highlighted cells.
C24: Guidance on the calculation of the metrics in the tool can be found here. Clicking on the link next to individual indicators below will also take you to the relevant section of the guidance.
F25: Click here to see the RAG rating data for this school | L25: Click here to see the RAG rating data for this school
C27: Macros must be enabled for this workbook to function as anticipated. | F27: Click here to input raw spending and characteristics data for this school | L27: Click here to input raw spending and characteristics data for this school
C29: Using the results from the dashboard Click here for explanations of what the red, amber and green (RAG) ratings mean and what do with the results.
F30: Calculated figures entered directly below will not be saved and will be re-calculated using data in the 'input raw data' tab when the workbook opens. | L30: Calculated figures entered directly below will not be saved and will be re-calculated using data in the 'input raw data' tab when the workbook opens.
F37: The school's data | H37: Rating against thresholds | L37: The school's data | N37: Rating against thresholds
C39: B. Spending as a percentage of total expenditure
C41: Spend on teaching staff as a percentage of total expenditure | D41: Guidance | F41: 59.4% | H41: Broadly in line with similar schools
C42: Spend on supply staff as a percentage of total expenditure | D42: Guidance | F42: 0.5% | H42: Broadly in line with similar schools
C43: Spend on education support staff as a percentage of total expenditure | D43: Guidance | F43: 12.1% | H43: Highest 10% of similar schools
C44: Spend on administrative and clerical staff as a percentage of total expenditure | D44: Guidance | F44: 8.3% | H44: Broadly in line with similar schools
C45: Spend on other staff costs as a percentage of total expenditure | D45: Guidance | F45: 0.3% | H45: Broadly in line with similar schools
C46: Spend on premises (including staff costs) as a percentage of total expenditure | D46: Guidance | F46: 6.3% | H46: Broadly in line with similar schools
C47: Spend on teaching resources as a percentage of total expenditure | D47: Guidance | F47: 4.7% | H47: Lowest 10% of similar schools
C48: Spend on energy as a percentage of total expenditure | D48: Guidance | F48: 2.3% | H48: Highest 10% of similar schools
C49: Other spending as a percentage of total expenditure (balancing line) | D49: Guidance | F49: 6.1% | H49: N/A
F50: =IF(OR(ROUND(SUM(F41:F49),3)=100%,SUM(F41:F49)=0),"","Section must sum to 100%") ->  | L50: =IF(OR(ROUND(SUM(L41:L49),3)=100%,SUM(L41:L49)=0),"","Section must sum to 100%") -> 
C51: C. Reserves / balances as a percentage of total income
C53: In-year balance as a percentage of total income | D53: Guidance | F53: -1.9% | H53: Medium risk
C54: Revenue reserve as a percentage of total income | D54: Guidance | F54: 3.5% | H54: Low risk | N54: =IF(OR(N$14="",N$15="",N$16="",N$17="",L54=""),"", IF(L54<=-0.05,High, IF(AND(L54>-0.05,L54<0),Medium, IF(L54>=0,Low,"")))) -> 
C56: D. School characteristics
C58: Average teacher cost (£) | D58: Guidance | F58: £62,358 | H58: Highest 10% of similar schools
C59: Senior leaders as a percentage of workforce | D59: Guidance | F59: 8.6% | H59: Highest 20% of similar schools
C60: Pupil to teacher ratio | D60: Guidance | F60: 19.1 | H60: Highest 20% of similar schools
C61: Pupil to adult ratio | D61: Guidance | F61: 11.6 | H61: Broadly in line with similar schools
C62: Teacher contact ratio (less than 1.0) | D62: Guidance | N62: =IF(OR(N$14="",N$15="",N$16="",N$17="",L62=""),"", IF(L62<=0.7,MuchLower, IF(AND(L62>0.7,L62<=0.74),Lower, IF(AND(L62>0.74,L62<=0.8),Inline2, IF(AND(L62>0.8,L62<=0.82),Higher, IF(L62>0.82,Muchhigher,"")))))) -> 
C63: Predicted percentage pupil number change in 3-5 years | D63: Guidance | F63: 5.5% | H63: Low risk | N63: =IF(OR(N$14="",N$15="",N$16="",N$17="",L63=""),"", IF(L63<=-0.1,High, IF(AND(L63>-0.1,L63<=-0.02),Medium, IF(L63>=-0.02,Low,"")))) -> 
C64: Average class size | D64: Guidance | F64: 21.5 | H64: Middle 20% of similar schools
C66: E. Outcomes
C68: Ofsted rating | D68: Guidance | F68: Good | H68: =IF(OR(H$14="",H$15="",H$16="",H$17="",F68=""),"",INDIRECT(F68)) -> Good | N68: =IF(OR(N$14="",N$15="",N$16="",N$17="",L68=""),"",INDIRECT(L68)) -> 
C69: Progress 8 score | D69: Guidance | F69: -0.2 | H69: =IF(OR(H$14="",H$15="",H$16="",H$17="",F69=""),"", IF(F69>=0.5,Wellabove, IF(AND(F69>=0,F69<0.5),Average, IF(AND(F69>-0.5,F69<0),Below, IF(F69<=-0.5,Wellbelow,""))))) -> Below average | N69: =IF(OR(N$14="",N$15="",N$16="",N$17="",L69=""),"", IF(L69>=0.5,Wellabove, IF(AND(L69>=0,L69<0.5),Average, IF(AND(L69>-0.5,L69<0),Below, IF(L69<=-0.5,Wellbelow,""))))) -> 
C70: Progress score in reading | D70: Guidance | H70: =IF(OR(H$14="",H$15="",H$16="",H$17="",F70=""),"", IF(F70>=3.2,Wellabove, IF(AND(F70>=0,F70<3.2),Average, IF(AND(F70>-2.7,F70<0),Below, IF(F70<=-2.7,Wellbelow,""))))) ->  | N70: =IF(OR(N$14="",N$15="",N$16="",N$17="",L70=""),"", IF(L70>=3.2,Wellabove, IF(AND(L70>=0,L70<3.2),Average, IF(AND(L70>-2.7,L70<0),Below, IF(L70<=-2.7,Wellbelow,""))))) -> 
C71: Progress score in writing | D71: Guidance | H71: =IF(OR(H$14="",H$15="",H$16="",H$17="",F71=""),"", IF(F71>=2.7,Wellabove, IF(AND(F71>=0,F71<2.7),Average, IF(AND(F71>-2.6,F71<0),Below, IF(F71<=-2.6,Wellbelow,""))))) ->  | N71: =IF(OR(N$14="",N$15="",N$16="",N$17="",L71=""),"", IF(L71>=2.7,Wellabove, IF(AND(L71>=0,L71<2.7),Average, IF(AND(L71>-2.6,L71<0),Below, IF(L71<=-2.6,Wellbelow,""))))) -> 
C72: Progress score in maths | D72: Guidance | H72: =IF(OR(H$14="",H$15="",H$16="",H$17="",F72=""),"", IF(F72>=3.2,Wellabove, IF(AND(F72>=0,F72<3.2),Average, IF(AND(F72>-3.1,F72<0),Below, IF(F72<=-3.1,Wellbelow,""))))) ->  | N72: =IF(OR(N$14="",N$15="",N$16="",N$17="",L72=""),"", IF(L72>=3.2,Wellabove, IF(AND(L72>=0,L72<3.2),Average, IF(AND(L72>-3.1,L72<0),Below, IF(L72<=-3.1,Wellbelow,""))))) -> 
C74: F: Optional commentary
C76: Teacher contact ratio (less than 1.0) - the data entererd in this column should be 0.75 which is Green- Broadly in line with recommendataions. Every time I enetr the data, it does not save on shutdown for some reason. | F76: Green - Broadly in line with recommendations (ASCL 0.78) | L76: [enter text]

Sheet Data_Store (hidden)
A1: School Name | B1: Shenfield High School | C1: Test1 | E1: St Matthew's Church of England Primary and Nursery Academy | F1: All Saints Babbacombe CofE Primary School | G1: St Marychurch Church of England Primary and Nursery School | H1: St Rumon's Church of England (VC) Infants School | I1: St Peter's Church of England (VA) Junior School - Tavistock | J1: St Edward's CofE Primary School - Plymouth | K1: Upton St James CofE Primary School | L1: St Leonard's (CofE) Primary School (VC) | M1: All Saints Church of England Primary School - Axminster | N1: Beer Church of England Primary School | O1: Lady Modiford's Church of England Primary School | P1: Meavy Church of England Primary School | Q1: Tidcombe Primary School
A2: Full time equivalent number of teachers (classroom and leadership)
A3: Full time equivalent of teachers in the leadership group
A4: Full time equivalent of total school workforce
A5: Total expenditure
A6: Total income
A7: Revenue balances (committed and uncommitted)
A8: Teaching periods in the timetable cycle
A9: Total lessons taught by all teachers in the timetable cycle
A10: Total number of classes
A11: Teaching staff
A12: Supply teaching staff
A13: Education support staff
A14: Administrative and clerical staff
A15: Premises staff
A16: Catering staff
A17: Cost of other staff
A18: Indirect employee expenses
A19: Staff development and training
A20: Supply teacher insurance
A21: Staff-related insurance
A22: Maintenance of premises
A23: Cleaning and caretaking
A24: Water and sewerage
A25: Energy
A26: Rent and rates
A27: Grounds maintenance
A28: Other occupation costs
A29: Special facilities
A30: Teaching resources
A31: ICT teaching resources
A32: Examination fees
A33: Educational consultancy
A34: Agency supply teaching staff
A35: Catering supplies
A36: Auditor costs
A37: Other insurance premiums
A38: Administrative supplies - non educational
A39: Direct revenue financing (revenue contributions to capital)
A40: Professional services - non-curriculum
A41: Interest charges for loan and bank
A42: PFI charges

Sheet File_Statistics (hidden)
C3: File statistics | F3: VBA key | I3: RAG
C5: Number of schools | D5: 1 | F5: Dashboard Column | G5: 6 | I5: Characteristics | J5: 0
C6: Pre_Populated | D6: N | F6: Optional Column | G6: 6
F7: Dashboard Qual | G7: 8

Sheet Optional - input raw data (hidden)
C3: Raw data form
F4: 1 | J4: 1
C5: This form can be used to input raw spend and characteristics information. If used, the information in this table will be used to calculate the percentages and ratios required in the dashboard. The percentages and ratios can also be inputted directly into the dashboard. Schools should use the most up to date information available to them, and not rely on lagged published data. All of the data should refer to the same financial year.
F8: School name: | J8: School name:
F9: Shenfield High School
C19: Full time equivalent number of teachers (classroom and leadership) | F19: 70.3
C20: Full time equivalent of teachers in the leadership group | F20: 10.0
C21: Full time equivalent of total school workforce | F21: 115.6
C23: Total expenditure | F23: £7,380,000
C24: Total income | F24: £7,245,000
C25: Revenue balances (committed and uncommitted)
C27: For secondary and all-through schools:
C28: Teaching periods in the timetable cycle
C29: Total lessons taught by all teachers in the timetable cycle
D30: =IFERROR(IF((F29/(F28*F19))<0.5,"Resulting teacher contact ratio is low. Total lessons taught may be incorrectly calculated as too low",IF((F29/(F28*F19))>1,"Resulting teacher contact ratio is greater than 1. Total lessons taught is too high","")),"") -> 
C31: For primary schools:
C32: Total number of classes
C34: E1 | D34: Teaching staff | F34: £4,385,000
C35: E2 | D35: Supply teaching staff | F35: £0
C36: E3 | D36: Education support staff | F36: £895,000
C37: E4 | D37: Administrative and clerical staff | F37: £611,000
C38: E5 | D38: Premises staff | F38: £169,000
C39: E6 | D39: Catering staff | F39: £0
C40: E7 | D40: Cost of other staff | F40: £4,000
C41: E8 | D41: Indirect employee expenses | F41: £0
C42: E9 | D42: Staff development and training | F42: £20,000
C43: E10 | D43: Supply teacher insurance | F43: £0
C44: E11 | D44: Staff-related insurance | F44: £0
C45: E13 | D45: Maintenance of premises | F45: £81,000
C46: E14 | D46: Cleaning and caretaking | F46: £177,000
C47: E15 | D47: Water and sewerage | F47: £26,000
C48: E16 | D48: Energy | F48: £168,000
C49: E17 | D49: Rent and rates | F49: £34,000
C50: E18 | D50: Grounds maintenance | F50: £35,000
C51: E19 | D51: Other occupation costs | F51: £3,000
C52: E21 | D52: Special facilities | F52: £0
C53: E22 | D53: Teaching resources | F53: £222,000
C54: E23 | D54: ICT teaching resources | F54: £21,000
C55: E24 | D55: Examination fees | F55: £104,000
C56: E25 | D56: Educational consultancy | F56: £46,000
C57: E26 | D57: Agency supply teaching staff | F57: £35,000
C58: E28 | D58: Catering supplies | F58: £44,000
C59: E29 | D59: Auditor costs | F59: £10,000
C60: E30 | D60: Other insurance premiums | F60: £33,000
C61: E31 | D61: Administrative supplies - non educational | F61: £126,000
C62: E32 | D62: Direct revenue financing (revenue contributions to capital) | F62: £35,000
C63: E33 | D63: Professional services - non-curriculum | F63: £96,000
C64: E35 | D64: Interest charges for loan and bank | F64: £0
C65: E36 | D65: PFI charges | F65: £0
F87: N | J87: N
F88: N | J88: N

Sheet RAG rating data for your school (hidden)
B2: Select which school to show the RAG ratings for: | H2: The RAG ratings have been calculated using maintained school and academy 2018-19 data. The majority of metrics in the dashboard are percentages and ratios which at a national level don't change significantly year on year, so they still provide a fair and useful comparison with your up to date data. The exception is teacher costs, which do change year on year. To reflect the September 2019 pay award and September 2020 pension contributions changes, the underlying data has been uplifted by 8.6% so the RAG ratings for spend on teaching staff as a percentage of total expenditure and average teacher cost ensure your 2019/20 data is compared on a like for like basis.
B6: Your school has been identified as:
B7: =IF(OR($B$3="",File_Statistics!$J$5=1),"","- "&IF(LOWER(RAG_Calculation!C30) = "primary", "a primary school", IF(LOWER(RAG_Calculation!C30) = "secondary with sixth form","a secondary school with a sixth form", IF(LOWER(RAG_Calculation!C30)= "secondary without sixth form", "a secondary school without a sixth form",IF(LOWER(RAG_Calculation!C30)= "all-through", "an all-through school", IF(LOWER(RAG_Calculation!C30)="special","a special school", IF(LOWER(RAG_Calculation!C30) = "alternative provision","an alternative provision school", IF(LOWER(RAG_Calculation!C30)="nursery", "a nursery school","undefined school phase")))))))) -> 
B8: =IF(OR($B$3="",File_Statistics!$J$5=1),"","- "&RAG_Calculation!G30) -> 
B9: =IF(OR($B$3="",File_Statistics!$J$5=1),"", IF(RAG_Calculation!Q30=1,"", "- a "&RAG_Calculation!H30&" school because it has "&RAG_Calculation!K30)) -> 
B10: =IF(OR($B$3="",File_Statistics!$J$5=1),"", IF(RAG_Calculation!Q30=1,"", "- a school with "&RAG_Calculation!I30&" because "&RAG_Calculation!L30&" are eligible")) -> 
B13: The thresholds for the RAG ratings are based on these characteristics and are:
B15: B. Your spending as a percentage of expenditure
D17: Red rating | G17: Amber rating | L17: Light green rating | Q17: Dark green rating
B19: Spend on teaching staff as a percentage of total expenditure | D19: Less than or equal to | E19: =IF(OR($B$3="",File_Statistics!$J$5=1),"",RAG_Calculation!C9) ->  | G19: Between | H19: =IF(OR($B$3="",File_Statistics!$J$5=1),"",RAG_Calculation!C9) ->  | I19: and | J19: =IF(OR($B$3="",File_Statistics!$J$5=1),"",RAG_Calculation!D9) ->  | L19: Between | M19: =IF(OR($B$3="",File_Statistics!$J$5=1),"",RAG_Calculation!D9) ->  | N19: and | O19: =IF(OR($B$3="",File_Statistics!$J$5=1),"",RAG_Calculation!E9) ->  | Q19: Between | R19: =IF(OR($B$3="",File_Statistics!$J$5=1),"",RAG_Calculation!E9) ->  | S19: and | T19: =IF(OR($B$3="",File_Statistics!$J$5=1),"",RAG_Calculation!G9) -> 
D20: Or more than | E20: =IF(OR($B$3="",File_Statistics!$J$5=1),"",RAG_Calculation!I9) ->  | G20: Or between | H20: =IF(OR($B$3="",File_Statistics!$J$5=1),"",RAG_Calculation!H9) ->  | I20: and | J20: =IF(OR($B$3="",File_Statistics!$J$5=1),"",RAG_Calculation!I9) ->  | L20: Or between | M20: =IF(OR($B$3="",File_Statistics!$J$5=1),"",RAG_Calculation!G9) ->  | N20: and | O20: =IF(OR($B$3="",File_Statistics!$J$5=1),"",RAG_Calculation!H9) -> 
B22: Spend on supply staff as a percentage of total expenditure | D22: More than | E22: =IF(OR($B$3="",File_Statistics!$J$5=1),"",RAG_Calculation!I10) ->  | G22: Between | H22: =IF(OR($B$3="",File_Statistics!$J$5=1),"",RAG_Calculation!H10) ->  | I22: and | J22: =IF(OR($B$3="",File_Statistics!$J$5=1),"",RAG_Calculation!I10) ->  | L22: Between | M22: =IF(OR($B$3="",File_Statistics!$J$5=1),"",RAG_Calculation!G10) ->  | N22: and | O22: =IF(OR($B$3="",File_Statistics!$J$5=1),"",RAG_Calculation!H10) ->  | Q22: Between | R22: =IF(OR($B$3="",File_Statistics!$J$5=1),"",RAG_Calculation!E10) ->  | S22: and | T22: =IF(OR($B$3="",File_Statistics!$J$5=1),"",RAG_Calculation!G10) -> 
L23: Or less than or equal to | M23: =IF(OR($B$3="",File_Statistics!$J$5=1),"",RAG_Calculation!E10) -> 
B25: Spend on education support staff as a percentage of total expenditure | D25: More than | E25: =IF(OR($B$3="",File_Statistics!$J$5=1),"",RAG_Calculation!I11) ->  | G25: Between | H25: =IF(OR($B$3="",File_Statistics!$J$5=1),"",RAG_Calculation!H11) ->  | I25: and | J25: =IF(OR($B$3="",File_Statistics!$J$5=1),"",RAG_Calculation!I11) ->  | L25: Between | M25: =IF(OR($B$3="",File_Statistics!$J$5=1),"",RAG_Calculation!G11) ->  | N25: and | O25: =IF(OR($B$3="",File_Statistics!$J$5=1),"",RAG_Calculation!H11) ->  | Q25: Between | R25: =IF(OR($B$3="",File_Statistics!$J$5=1),"",RAG_Calculation!E11) ->  | S25: and | T25: =IF(OR($B$3="",File_Statistics!$J$5=1),"",RAG_Calculation!G11) -> 
L26: Or less than or equal to | M26: =IF(OR($B$3="",File_Statistics!$J$5=1),"",RAG_Calculation!E11) -> 
B28: Spend on administrative and clerical staff as a percentage of total expenditure | D28: More than | E28: =IF(OR($B$3="",File_Statistics!$J$5=1),"",RAG_Calculation!I12) ->  | G28: Between | H28: =IF(OR($B$3="",File_Statistics!$J$5=1),"",RAG_Calculation!H12) ->  | I28: and | J28: =IF(OR($B$3="",File_Statistics!$J$5=1),"",RAG_Calculation!I12) ->  | L28: Less than or equal to | M28: =IF(OR($B$3="",File_Statistics!$J$5=1),"",RAG_Calculation!H12) -> 
B31: Spend on other staff costs as a percentage of total expenditure | D31: More than | E31: =IF(OR($B$3="",File_Statistics!$J$5=1),"",RAG_Calculation!I13) ->  | G31: Between | H31: =IF(OR($B$3="",File_Statistics!$J$5=1),"",RAG_Calculation!H13) ->  | I31: and | J31: =IF(OR($B$3="",File_Statistics!$J$5=1),"",RAG_Calculation!I13) ->  | L31: Less than or equal to | M31: =IF(OR($B$3="",File_Statistics!$J$5=1),"",RAG_Calculation!H13) -> 
B34: Spend on premises (including staff costs) as a percentage of total expenditure | D34: More than | E34: =IF(OR($B$3="",File_Statistics!$J$5=1),"",RAG_Calculation!I14) ->  | G34: Between | H34: =IF(OR($B$3="",File_Statistics!$J$5=1),"",RAG_Calculation!H14) ->  | I34: and | J34: =IF(OR($B$3="",File_Statistics!$J$5=1),"",RAG_Calculation!I14) ->  | L34: Less than or equal to | M34: =IF(OR($B$3="",File_Statistics!$J$5=1),"",RAG_Calculation!H14) -> 
B37: Spend on teaching resources as a percentage of total expenditure | D37: Less than or equal to | E37: =IF(OR($B$3="",File_Statistics!$J$5=1),"",RAG_Calculation!C15) ->  | G37: Between | H37: =IF(OR($B$3="",File_Statistics!$J$5=1),"",RAG_Calculation!C15) ->  | I37: and | J37: =IF(OR($B$3="",File_Statistics!$J$5=1),"",RAG_Calculation!D15) ->  | L37: Between | M37: =IF(OR($B$3="",File_Statistics!$J$5=1),"",RAG_Calculation!D15) ->  | N37: and | O37: =IF(OR($B$3="",File_Statistics!$J$5=1),"",RAG_Calculation!E15) ->  | Q37: Between | R37: =IF(OR($B$3="",File_Statistics!$J$5=1),"",RAG_Calculation!E15) ->  | S37: and | T37: =IF(OR($B$3="",File_Statistics!$J$5=1),"",RAG_Calculation!G15) -> 
L38: Or more than | M38: =IF(OR($B$3="",File_Statistics!$J$5=1),"",RAG_Calculation!G15) -> 
B40: Spend on energy as a percentage of total expenditure | D40: More than | E40: =IF(OR($B$3="",File_Statistics!$J$5=1),"",RAG_Calculation!I16) ->  | G40: Between | H40: =IF(OR($B$3="",File_Statistics!$J$5=1),"",RAG_Calculation!H16) ->  | I40: and | J40: =IF(OR($B$3="",File_Statistics!$J$5=1),"",RAG_Calculation!I16) ->  | L40: Less than or equal to | M40: =IF(OR($B$3="",File_Statistics!$J$5=1),"",RAG_Calculation!H16) -> 
B44: C. Reserves / balances as a percentage of total income
D46: Red rating | G46: Amber rating | L46: Light green rating | Q46: Dark green rating
B48: In-year balance as a percentage of total income | D48: Less than or equal to | E48: =IF(OR($B$3="",File_Statistics!$J$5=1),"",-0.05) ->  | G48: Between | H48: =IF(OR($B$3="",File_Statistics!$J$5=1),"",-0.05) ->  | I48: and | J48: =IF(OR($B$3="",File_Statistics!$J$5=1),"",0) ->  | L48: More than or equal to | M48: =IF(OR($B$3="",File_Statistics!$J$5=1),"",0) -> 
B51: Revenue reserve as a percentage of total income | D51: Less than or equal to | E51: =IF(OR($B$3="",File_Statistics!$J$5=1),"",-0.05) ->  | G51: Between | H51: =IF(OR($B$3="",File_Statistics!$J$5=1),"",-0.05) ->  | I51: and | J51: =IF(OR($B$3="",File_Statistics!$J$5=1),"",0) ->  | L51: More than or equal to | M51: =IF(OR($B$3="",File_Statistics!$J$5=1),"",0) -> 
B55: D. School characteristics
D57: Red rating | G57: Amber rating | L57: Light green rating | Q57: Dark green rating
B59: Average teacher cost (£) | D59: Less than or equal to | E59: =IF(OR($B$3="",File_Statistics!$J$5=1),"",RAG_Calculation!C21) ->  | G59: Between | H59: =IF(OR($B$3="",File_Statistics!$J$5=1),"",RAG_Calculation!C21) ->  | I59: and | J59: =IF(OR($B$3="",File_Statistics!$J$5=1),"",RAG_Calculation!D21) ->  | L59: Between | M59: =IF(OR($B$3="",File_Statistics!$J$5=1),"",RAG_Calculation!D21) ->  | N59: and | O59: =IF(OR($B$3="",File_Statistics!$J$5=1),"",RAG_Calculation!E21) ->  | Q59: Between | R59: =IF(OR($B$3="",File_Statistics!$J$5=1),"",RAG_Calculation!E21) ->  | S59: and | T59: =IF(OR($B$3="",File_Statistics!$J$5=1),"",RAG_Calculation!G21) -> 
D60: Or more than | E60: =IF(OR($B$3="",File_Statistics!$J$5=1),"",RAG_Calculation!I21) ->  | G60: Or between | H60: =IF(OR($B$3="",File_Statistics!$J$5=1),"",RAG_Calculation!H21) ->  | I60: and | J60: =IF(OR($B$3="",File_Statistics!$J$5=1),"",RAG_Calculation!I21) ->  | L60: Or between | M60: =IF(OR($B$3="",File_Statistics!$J$5=1),"",RAG_Calculation!G21) ->  | N60: and | O60: =IF(OR($B$3="",File_Statistics!$J$5=1),"",RAG_Calculation!H21) -> 
B62: Senior leaders as a percentage of workforce | D62: More than | E62: =IF(OR($B$3="",File_Statistics!$J$5=1),"",RAG_Calculation!I17) ->  | G62: Between | H62: =IF(OR($B$3="",File_Statistics!$J$5=1),"",RAG_Calculation!H17) ->  | I62: and | J62: =IF(OR($B$3="",File_Statistics!$J$5=1),"",RAG_Calculation!I17) ->  | L62: Between | M62: =IF(OR($B$3="",File_Statistics!$J$5=1),"",RAG_Calculation!G17) ->  | N62: and | O62: =IF(OR($B$3="",File_Statistics!$J$5=1),"",RAG_Calculation!H17) ->  | Q62: Between | R62: =IF(OR($B$3="",File_Statistics!$J$5=1),"",RAG_Calculation!E17) ->  | S62: and | T62: =IF(OR($B$3="",File_Statistics!$J$5=1),"",RAG_Calculation!G17) -> 
L63: Or less than or equal to | M63: =IF(OR($B$3="",File_Statistics!$J$5=1),"",RAG_Calculation!E17) -> 
B65: Pupil to teacher ratio | D65: Less than or equal to | E65: =IF(OR($B$3="",File_Statistics!$J$5=1),"",RAG_Calculation!C18) ->  | G65: Between | H65: =IF(OR($B$3="",File_Statistics!$J$5=1),"",RAG_Calculation!C18) ->  | I65: and | J65: =IF(OR($B$3="",File_Statistics!$J$5=1),"",RAG_Calculation!D18) ->  | L65: Between | M65: =IF(OR($B$3="",File_Statistics!$J$5=1),"",RAG_Calculation!D18) ->  | N65: and | O65: =IF(OR($B$3="",File_Statistics!$J$5=1),"",RAG_Calculation!E18) ->  | Q65: Between | R65: =IF(OR($B$3="",File_Statistics!$J$5=1),"",RAG_Calculation!E18) ->  | S65: and | T65: =IF(OR($B$3="",File_Statistics!$J$5=1),"",RAG_Calculation!G18) -> 
D66: Or more than | E66: =IF(OR($B$3="",File_Statistics!$J$5=1),"",RAG_Calculation!I18) ->  | G66: Or between | H66: =IF(OR($B$3="",File_Statistics!$J$5=1),"",RAG_Calculation!H18) ->  | I66: and | J66: =IF(OR($B$3="",File_Statistics!$J$5=1),"",RAG_Calculation!I18) ->  | L66: Or between | M66: =IF(OR($B$3="",File_Statistics!$J$5=1),"",RAG_Calculation!G18) ->  | N66: and | O66: =IF(OR($B$3="",File_Statistics!$J$5=1),"",RAG_Calculation!H18) -> 
B68: Pupil to adult ratio | D68: Less than or equal to | E68: =IF(OR($B$3="",File_Statistics!$J$5=1),"",RAG_Calculation!C19) ->  | G68: Between | H68: =IF(OR($B$3="",File_Statistics!$J$5=1),"",RAG_Calculation!C19) ->  | I68: and | J68: =IF(OR($B$3="",File_Statistics!$J$5=1),"",RAG_Calculation!D19) ->  | L68: Between | M68: =IF(OR($B$3="",File_Statistics!$J$5=1),"",RAG_Calculation!D19) ->  | N68: and | O68: =IF(OR($B$3="",File_Statistics!$J$5=1),"",RAG_Calculation!E19) ->  | Q68: Between | R68: =IF(OR($B$3="",File_Statistics!$J$5=1),"",RAG_Calculation!E19) ->  | S68: and | T68: =IF(OR($B$3="",File_Statistics!$J$5=1),"",RAG_Calculation!G19) -> 
D69: Or more than | E69: =IF(OR($B$3="",File_Statistics!$J$5=1),"",RAG_Calculation!I19) ->  | G69: Or between | H69: =IF(OR($B$3="",File_Statistics!$J$5=1),"",RAG_Calculation!H19) ->  | I69: and | J69: =IF(OR($B$3="",File_Statistics!$J$5=1),"",RAG_Calculation!I19) ->  | L69: Or between | M69: =IF(OR($B$3="",File_Statistics!$J$5=1),"",RAG_Calculation!G19) ->  | N69: and | O69: =IF(OR($B$3="",File_Statistics!$J$5=1),"",RAG_Calculation!H19) -> 
B71: =IF(OR($B$7="- an alternative provision school",$B$7="- a special school",$B$7="- a nursery school"),"","Teacher contact ratio (less than 1.0)") -> Teacher contact ratio (less than 1.0) | D71: =IF(B71="","","Less than or equal to") -> Less than or equal to | E71: =IF(OR($B$7="- an alternative provision school",$B$7="- a special school",$B$7="- a nursery school",$B$3="",File_Statistics!$J$5=1),"",0.7) ->  | G71: =IF(B71="","","Between") -> Between | H71: =IF(OR($B$7="- an alternative provision school",$B$7="- a special school",$B$7="- a nursery school",$B$3="",File_Statistics!$J$5=1),"",0.7) ->  | I71: =IF(B71="","","and") -> and | J71: =IF(OR($B$7="- an alternative provision school",$B$7="- a special school",$B$7="- a nursery school",$B$3="",File_Statistics!$J$5=1),"",0.74) ->  | L71: =IF(B71="","","Between") -> Between | M71: =IF(OR($B$7="- an alternative provision school",$B$7="- a special school",$B$7="- a nursery school",$B$3="",File_Statistics!$J$5=1),"",0.74) ->  | N71: =IF(G71="","","and") -> and | O71: =IF(OR($B$7="- an alternative provision school",$B$7="- a special school",$B$7="- a nursery school",$B$3="",File_Statistics!$J$5=1),"",0.8) -> 
D72: =IF(B71="","","Or more than") -> Or more than | E72: =IF(OR($B$7="- an alternative provision school",$B$7="- a special school",$B$7="- a nursery school",$B$3="",File_Statistics!$J$5=1),"",0.82) ->  | G72: =IF(B71="","","Or between") -> Or between | H72: =IF(OR($B$7="- an alternative provision school",$B$7="- a special school",$B$7="- a nursery school",$B$3="",File_Statistics!$J$5=1),"",0.8) ->  | I72: =IF(B72="","","and") ->  | J72: =IF(OR($B$7="- an alternative provision school",$B$7="- a special school",$B$7="- a nursery school",$B$3="",File_Statistics!$J$5=1),"",0.82) -> 
B74: Predicted percentage pupil number change in 3-5 years | D74: Less than or equal to | E74: =IF(OR($B$3="",File_Statistics!$J$5=1),"",-0.1) ->  | G74: Between | H74: =IF(OR($B$3="",File_Statistics!$J$5=1),"",-0.1) ->  | I74: and | J74: =IF(OR($B$3="",File_Statistics!$J$5=1),"",-0.02) ->  | L74: More than | M74: =IF(OR($B$3="",File_Statistics!$J$5=1),"",-0.02) -> 
B77: =IF(OR($B$7="- an alternative provision school",$B$7="- a special school",$B$7="- a nursery school"),"","Average class size") -> Average class size | D77: =IF(B77="","","Less than or equal to") -> Less than or equal to | E77: =IF(OR($B$3="",File_Statistics!$J$5=1),"",RAG_Calculation!C20) ->  | G77: =IF(B77="","","Between") -> Between | H77: =IF(OR($B$3="",File_Statistics!$J$5=1),"",RAG_Calculation!C20) ->  | I77: =IF(B77="","","and") -> and | J77: =IF(OR($B$3="",File_Statistics!$J$5=1),"",RAG_Calculation!D20) ->  | L77: =IF(B77="","","Between") -> Between | M77: =IF(OR($B$3="",File_Statistics!$J$5=1),"",RAG_Calculation!D20) ->  | N77: =IF(B77="","","and") -> and | O77: =IF(OR($B$3="",File_Statistics!$J$5=1),"",RAG_Calculation!E20) ->  | Q77: =IF(B77="","","Between") -> Between | R77: =IF(OR($B$3="",File_Statistics!$J$5=1),"",RAG_Calculation!E20) ->  | S77: =IF(B77="","","and") -> and | T77: =IF(OR($B$3="",File_Statistics!$J$5=1),"",RAG_Calculation!G20) -> 
D78: =IF(B77="","","Or more than") -> Or more than | E78: =IF(OR($B$3="",File_Statistics!$J$5=1),"",RAG_Calculation!I20) ->  | G78: =IF(B77="","","Or between") -> Or between | H78: =IF(OR($B$3="",File_Statistics!$J$5=1),"",RAG_Calculation!H20) ->  | I78: =IF(B77="","","and") -> and | J78: =IF(OR($B$3="",File_Statistics!$J$5=1),"",RAG_Calculation!I20) ->  | L78: =IF(B77="","","Or between") -> Or between | M78: =IF(OR($B$3="",File_Statistics!$J$5=1),"",RAG_Calculation!G20) ->  | N78: =IF(B77="","","and") -> and | O78: =IF(OR($B$3="",File_Statistics!$J$5=1),"",RAG_Calculation!H20) -> 
B81: E. Outcomes
D83: Red rating | G83: Amber rating | L83: Light green rating | Q83: Dark green rating
B85: Ofsted rating | D85: School is rated | G85: School is rated | L85: School is rated | Q85: School is rated
D86: =IF($B$3="","","Inadequate") ->  | G86: =IF($B$3="","","Requires Improvement (RI)") ->  | L86: =IF($B$3="","","Good") ->  | Q86: =IF($B$3="","","Outstanding") -> 
B88: =IF(OR($B$7="- a primary school",$B$7="- a nursery school"),"","Progress 8 score") -> Progress 8 score | D88: =IF(B88="","","Less than or equal to") -> Less than or equal to | E88: =IF(OR($B$3="",B88="",File_Statistics!$J$5=1),"",-0.5) ->  | G88: =IF(B88="","","Between") -> Between | H88: =IF(OR($B$3="",B88="",File_Statistics!$J$5=1),"",-0.5) ->  | I88: =IF(B88="","","and") -> and | J88: =IF(OR($B$3="",B88="",File_Statistics!$J$5=1),"",0) ->  | L88: =IF(B88="","","Between") -> Between | M88: =IF(OR($B$3="",B88="",File_Statistics!$J$5=1),"",0) ->  | N88: =IF(B88="","","and") -> and | O88: =IF(OR($B$3="",B88="",File_Statistics!$J$5=1),"",0.5) ->  | Q88: =IF(B88="","","More than") -> More than | R88: =IF(OR($B$3="",B88="",File_Statistics!$J$5=1),"",0.5) -> 
B91: =IF(OR($B$7="- a secondary school with a sixth form", $B$7="- a secondary school without a sixth form",$B$7="- a nursery school"),"","Progress score in reading") -> Progress score in reading | D91: =IF(B91="","","Less than or equal to") -> Less than or equal to | E91: =IF(OR($B$3="",B91="",File_Statistics!$J$5=1),"",-2.7) ->  | G91: =IF(B91="","","Between") -> Between | H91: =IF(OR($B$3="",B91="",File_Statistics!$J$5=1),"",-2.7) ->  | I91: =IF(B91="","","and") -> and | J91: =IF(OR($B$3="",B91="",File_Statistics!$J$5=1),"",0) ->  | L91: =IF(B91="","","Between") -> Between | M91: =IF(OR($B$3="",B91="",File_Statistics!$J$5=1),"",0) ->  | N91: =IF(B91="","","and") -> and | O91: =IF(OR($B$3="",B91="",File_Statistics!$J$5=1),"",3.2) ->  | Q91: =IF(B91="","","More than") -> More than | R91: =IF(OR($B$3="",B91="",File_Statistics!$J$5=1),"",3.2) -> 
B94: =IF(OR($B$7="- a secondary school with a sixth form", $B$7="- a secondary school without a sixth form",$B$7="- a nursery school"),"","Progress score in writing") -> Progress score in writing | D94: =IF(B94="","","Less than or equal to") -> Less than or equal to | E94: =IF(OR($B$3="",B94="",File_Statistics!$J$5=1),"",-2.6) ->  | G94: =IF(B94="","","Between") -> Between | H94: =IF(OR($B$3="",B94="",File_Statistics!$J$5=1),"",-2.6) ->  | I94: =IF(B94="","","and") -> and | J94: =IF(OR($B$3="",B94="",File_Statistics!$J$5=1),"",0) ->  | L94: =IF(B94="","","Between") -> Between | M94: =IF(OR($B$3="",B94="",File_Statistics!$J$5=1),"",0) ->  | N94: =IF(B94="","","and") -> and | O94: =IF(OR($B$3="",B94="",File_Statistics!$J$5=1),"",2.7) ->  | Q94: =IF(B94="","","More than") -> More than | R94: =IF(OR($B$3="",B94="",File_Statistics!$J$5=1),"",2.7) -> 
B97: =IF(OR($B$7="- a secondary school with a sixth form", $B$7="- a secondary school without a sixth form",$B$7="- a nursery school"),"","Progress score in maths") -> Progress score in maths | D97: =IF(B97="","","Less than or equal to") -> Less than or equal to | E97: =IF(OR($B$3="",B97="",File_Statistics!$J$5=1),"",-3.1) ->  | G97: =IF(B97="","","Between") -> Between | H97: =IF(OR($B$3="",B97="",File_Statistics!$J$5=1),"",-3.1) ->  | I97: =IF(B97="","","and") -> and | J97: =IF(OR($B$3="",B97="",File_Statistics!$J$5=1),"",0) ->  | L97: =IF(B97="","","Between") -> Between | M97: =IF(OR($B$3="",B97="",File_Statistics!$J$5=1),"",0) ->  | N97: =IF(B97="","","and") -> and | O97: =IF(OR($B$3="",B97="",File_Statistics!$J$5=1),"",3.2) ->  | Q97: =IF(B97="","","More than") -> More than | R97: =IF(OR($B$3="",B97="",File_Statistics!$J$5=1),"",3.2) -> 

Sheet RAG rating data for all schools (hidden)
B1: Expand the groups to see the thresholds
A3: Sample size | B3: Phase | C3: Size | D3: FSM | F3: Red if less than: | G3: Amber if less than: | H3: Dark green if between: | I3: (Median) | J3: and: | K3: Amber if more than: | L3: Red if more than: | N3: Light green for everything else
A4: 726 | B4: Primary | C4: Very small | D4: Low FSM | E4: PVSL
B5: Primary | C5: Very small | D5: Low FSM | E5: Spend on teaching staff as a percentage of total expenditure | F5: 39.7% | G5: 42.9% | H5: 46.5% | I5: 48.0% | J5: 49.7% | K5: 52.8% | L5: 55.2%
B6: Primary | C6: Very small | D6: Low FSM | E6: Spend on supply staff as a percentage of total expenditure | H6: 1.6% | I6: 2.0% | J6: 2.5% | K6: 4.1% | L6: 5.8%
B7: Primary | C7: Very small | D7: Low FSM | E7: Spend on education support staff as a percentage of total expenditure | H7: 12.4% | I7: 13.6% | J7: 14.5% | K7: 17.1% | L7: 19.3%
B8: Primary | C8: Very small | D8: Low FSM | E8: Spend on administrative and clerical staff as a percentage of total expenditure | I8: 1.9% | K8: 4.0% | L8: 7.0%
B9: Primary | C9: Very small | D9: Low FSM | E9: Spend on other staff costs as a percentage of total expenditure | I9: 3.1% | K9: 5.1% | L9: 6.6%
B10: Primary | C10: Very small | D10: Low FSM | E10: Spend on premises (including staff costs) as a percentage of total expenditure | I10: 8.5% | K10: 11.2% | L10: 12.7%
B11: Primary | C11: Very small | D11: Low FSM | E11: Spend on teaching resources as a percentage of total expenditure | F11: 3.3% | G11: 4.1% | H11: 5.3% | I11: 6.0% | J11: 6.7%
B12: Primary | C12: Very small | D12: Low FSM | E12: Spend on energy as a percentage of total expenditure | I12: 1.4% | K12: 1.9% | L12: 2.3%
B13: Primary | C13: Very small | D13: Low FSM | E13: Senior leaders as a percentage of workforce | H13: 11.1% | I13: 12.2% | J13: 13.9% | K13: 17.9% | L13: 20.8%
B14: Primary | C14: Very small | D14: Low FSM | E14: Pupil to teacher ratio | F14: 12.4 | G14: 14.0 | H14: 16.3 | I14: 17.1 | J14: 17.8 | K14: 20.0 | L14: 22.0
B15: Primary | C15: Very small | D15: Low FSM | E15: Pupil to adult ratio | F15: 5.7 | G15: 6.7 | H15: 7.7 | I15: 8.1 | J15: 8.6 | K15: 9.6 | L15: 10.9
B16: Primary | C16: Very small | D16: Low FSM | E16: Average class size | F16: 14.0 | G16: 16.8 | H16: 20.0 | I16: 21.0 | J16: 22.3 | K16: 24.0 | L16: 25.0
A18: 698 | B18: Primary | C18: Small | D18: Low FSM | E18: PSL
B19: Primary | C19: Small | D19: Low FSM | E19: Spend on teaching staff as a percentage of total expenditure | F19: 41.6% | G19: 44.1% | H19: 47.3% | I19: 48.5% | J19: 49.6% | K19: 52.8% | L19: 54.9%
B20: Primary | C20: Small | D20: Low FSM | E20: Spend on supply staff as a percentage of total expenditure | H20: 1.7% | I20: 2.1% | J20: 2.5% | K20: 3.7% | L20: 4.9%
B21: Primary | C21: Small | D21: Low FSM | E21: Spend on education support staff as a percentage of total expenditure | H21: 13.7% | I21: 14.7% | J21: 15.6% | K21: 18.2% | L21: 20.3%
B22: Primary | C22: Small | D22: Low FSM | E22: Spend on administrative and clerical staff as a percentage of total expenditure | I22: 2.2% | K22: 4.7% | L22: 6.9%
B23: Primary | C23: Small | D23: Low FSM | E23: Spend on other staff costs as a percentage of total expenditure | I23: 3.3% | K23: 5.2% | L23: 6.4%
B24: Primary | C24: Small | D24: Low FSM | E24: Spend on premises (including staff costs) as a percentage of total expenditure | I24: 7.7% | K24: 9.9% | L24: 11.1%
B25: Primary | C25: Small | D25: Low FSM | E25: Spend on teaching resources as a percentage of total expenditure | F25: 3.0% | G25: 3.8% | H25: 5.1% | I25: 5.6% | J25: 6.1%
B26: Primary | C26: Small | D26: Low FSM | E26: Spend on energy as a percentage of total expenditure | I26: 1.3% | K26: 1.7% | L26: 1.9%
B27: Primary | C27: Small | D27: Low FSM | E27: Senior leaders as a percentage of workforce | H27: 9.7% | I27: 11.0% | J27: 12.5% | K27: 15.3% | L27: 17.7%
B28: Primary | C28: Small | D28: Low FSM | E28: Pupil to teacher ratio | F28: 17.0 | G28: 18.0 | H28: 19.6 | I28: 20.2 | J28: 20.7 | K28: 22.5 | L28: 23.9
B29: Primary | C29: Small | D29: Low FSM | E29: Pupil to adult ratio | F29: 7.9 | G29: 8.5 | H29: 9.3 | I29: 9.6 | J29: 10.0 | K29: 11.0 | L29: 11.8
B30: Primary | C30: Small | D30: Low FSM | E30: Average class size | F30: 21.7 | G30: 23.4 | H30: 25.1 | I30: 25.8 | J30: 26.3 | K30: 28.2 | L30: 29.2
A32: 1,757 | B32: Primary | C32: Medium | D32: Low FSM | E32: PML
B33: Primary | C33: Medium | D33: Low FSM | E33: Spend on teaching staff as a percentage of total expenditure | F33: 41.9% | G33: 44.3% | H33: 47.0% | I33: 48.1% | J33: 49.3% | K33: 52.0% | L33: 54.0%
B34: Primary | C34: Medium | D34: Low FSM | E34: Spend on supply staff as a percentage of total expenditure | H34: 1.6% | I34: 2.0% | J34: 2.3% | K34: 3.6% | L34: 4.8%
B35: Primary | C35: Medium | D35: Low FSM | E35: Spend on education support staff as a percentage of total expenditure | H35: 14.6% | I35: 15.6% | J35: 16.6% | K35: 19.0% | L35: 21.3%
B36: Primary | C36: Medium | D36: Low FSM | E36: Spend on administrative and clerical staff as a percentage of total expenditure | I36: 2.8% | K36: 5.6% | L36: 7.6%
B37: Primary | C37: Medium | D37: Low FSM | E37: Spend on other staff costs as a percentage of total expenditure | I37: 3.5% | K37: 5.3% | L37: 6.6%
B38: Primary | C38: Medium | D38: Low FSM | E38: Spend on premises (including staff costs) as a percentage of total expenditure | I38: 7.2% | K38: 9.4% | L38: 10.6%
B39: Primary | C39: Medium | D39: Low FSM | E39: Spend on teaching resources as a percentage of total expenditure | F39: 3.0% | G39: 3.8% | H39: 4.8% | I39: 5.3% | J39: 5.9%
B40: Primary | C40: Medium | D40: Low FSM | E40: Spend on energy as a percentage of total expenditure | I40: 1.2% | K40: 1.5% | L40: 1.7%
B41: Primary | C41: Medium | D41: Low FSM | E41: Senior leaders as a percentage of workforce | H41: 8.8% | I41: 9.4% | J41: 10.1% | K41: 11.8% | L41: 13.7%
B42: Primary | C42: Medium | D42: Low FSM | E42: Pupil to teacher ratio | F42: 19.1 | G42: 20.2 | H42: 21.7 | I42: 22.3 | J42: 23.0 | K42: 24.5 | L42: 26.0
B43: Primary | C43: Medium | D43: Low FSM | E43: Pupil to adult ratio | F43: 8.7 | G43: 9.3 | H43: 10.1 | I43: 10.5 | J43: 10.9 | K43: 11.8 | L43: 12.5
B44: Primary | C44: Medium | D44: Low FSM | E44: Average class size | F44: 25.6 | G44: 26.8 | H44: 28.4 | I44: 29.0 | J44: 29.5 | K44: 30.0 | L44: 30.6
A46: 650 | B46: Primary | C46: Large | D46: Low FSM | E46: PLL
B47: Primary | C47: Large | D47: Low FSM | E47: Spend on teaching staff as a percentage of total expenditure | F47: 43.4% | G47: 45.3% | H47: 48.0% | I47: 49.1% | J47: 50.2% | K47: 52.5% | L47: 54.5%
B48: Primary | C48: Large | D48: Low FSM | E48: Spend on supply staff as a percentage of total expenditure | H48: 1.5% | I48: 1.9% | J48: 2.2% | K48: 3.3% | L48: 4.5%
B49: Primary | C49: Large | D49: Low FSM | E49: Spend on education support staff as a percentage of total expenditure | H49: 15.6% | I49: 16.4% | J49: 17.4% | K49: 19.7% | L49: 21.5%
B50: Primary | C50: Large | D50: Low FSM | E50: Spend on administrative and clerical staff as a percentage of total expenditure | I50: 3.0% | K50: 5.8% | L50: 7.7%
B51: Primary | C51: Large | D51: Low FSM | E51: Spend on other staff costs as a percentage of total expenditure | I51: 3.4% | K51: 5.3% | L51: 6.6%
B52: Primary | C52: Large | D52: Low FSM | E52: Spend on premises (including staff costs) as a percentage of total expenditure | I52: 6.7% | K52: 8.8% | L52: 10.4%
B53: Primary | C53: Large | D53: Low FSM | E53: Spend on teaching resources as a percentage of total expenditure | F53: 3.2% | G53: 3.8% | H53: 4.8% | I53: 5.2% | J53: 5.7%
B54: Primary | C54: Large | D54: Low FSM | E54: Spend on energy as a percentage of total expenditure | I54: 1.1% | K54: 1.4% | L54: 1.6%
B55: Primary | C55: Large | D55: Low FSM | E55: Senior leaders as a percentage of workforce | H55: 6.1% | I55: 6.7% | J55: 7.3% | K55: 8.7% | L55: 10.3%
B56: Primary | C56: Large | D56: Low FSM | E56: Pupil to teacher ratio | F56: 20.1 | G56: 21.2 | H56: 22.7 | I56: 23.3 | J56: 23.7 | K56: 25.2 | L56: 26.4
B57: Primary | C57: Large | D57: Low FSM | E57: Pupil to adult ratio | F57: 9.3 | G57: 9.9 | H57: 10.7 | I57: 11.0 | J57: 11.4 | K57: 12.3 | L57: 13.3
B58: Primary | C58: Large | D58: Low FSM | E58: Average class size | F58: 27.6 | G58: 28.4 | H58: 29.4 | I58: 29.6 | J58: 29.8 | K58: 30.1 | L58: 30.6
A60: 880 | B60: Primary | C60: Very small | D60: Medium FSM | E60: PVSM
B61: Primary | C61: Very small | D61: Medium FSM | E61: Spend on teaching staff as a percentage of total expenditure | F61: 39.4% | G61: 42.2% | H61: 45.7% | I61: 47.3% | J61: 48.7% | K61: 52.3% | L61: 55.2%
B62: Primary | C62: Very small | D62: Medium FSM | E62: Spend on supply staff as a percentage of total expenditure | H62: 1.6% | I62: 2.1% | J62: 2.6% | K62: 4.1% | L62: 5.8%
B63: Primary | C63: Very small | D63: Medium FSM | E63: Spend on education support staff as a percentage of total expenditure | H63: 13.3% | I63: 14.3% | J63: 15.3% | K63: 17.9% | L63: 19.8%
B64: Primary | C64: Very small | D64: Medium FSM | E64: Spend on administrative and clerical staff as a percentage of total expenditure | I64: 2.4% | K64: 5.8% | L64: 7.9%
B65: Primary | C65: Very small | D65: Medium FSM | E65: Spend on other staff costs as a percentage of total expenditure | I65: 3.3% | K65: 5.1% | L65: 6.6%
B66: Primary | C66: Very small | D66: Medium FSM | E66: Spend on premises (including staff costs) as a percentage of total expenditure | I66: 8.1% | K66: 10.8% | L66: 12.1%
B67: Primary | C67: Very small | D67: Medium FSM | E67: Spend on teaching resources as a percentage of total expenditure | F67: 3.0% | G67: 3.9% | H67: 5.1% | I67: 5.6% | J67: 6.3%
B68: Primary | C68: Very small | D68: Medium FSM | E68: Spend on energy as a percentage of total expenditure | I68: 1.4% | K68: 1.9% | L68: 2.2%
B69: Primary | C69: Very small | D69: Medium FSM | E69: Senior leaders as a percentage of workforce | H69: 10.5% | I69: 11.8% | J69: 13.0% | K69: 17.1% | L69: 20.4%
B70: Primary | C70: Very small | D70: Medium FSM | E70: Pupil to teacher ratio | F70: 11.8 | G70: 13.7 | H70: 15.7 | I70: 16.7 | J70: 17.6 | K70: 19.8 | L70: 21.6
B71: Primary | C71: Very small | D71: Medium FSM | E71: Pupil to adult ratio | F71: 5.6 | G71: 6.3 | H71: 7.3 | I71: 7.8 | J71: 8.2 | K71: 9.2 | L71: 10.0
B72: Primary | C72: Very small | D72: Medium FSM | E72: Average class size | F72: 13.5 | G72: 16.3 | H72: 19.9 | I72: 21.0 | J72: 22.0 | K72: 24.0 | L72: 25.3
A74: 994 | B74: Primary | C74: Small | D74: Medium FSM | E74: PSM
B75: Primary | C75: Small | D75: Medium FSM | E75: Spend on teaching staff as a percentage of total expenditure | F75: 40.0% | G75: 42.7% | H75: 45.7% | I75: 46.8% | J75: 48.2% | K75: 51.1% | L75: 53.6%
B76: Primary | C76: Small | D76: Medium FSM | E76: Spend on supply staff as a percentage of total expenditure | H76: 1.7% | I76: 2.2% | J76: 2.7% | K76: 4.1% | L76: 5.3%
B77: Primary | C77: Small | D77: Medium FSM | E77: Spend on education support staff as a percentage of total expenditure | H77: 15.0% | I77: 16.0% | J77: 17.1% | K77: 19.7% | L77: 22.3%
B78: Primary | C78: Small | D78: Medium FSM | E78: Spend on administrative and clerical staff as a percentage of total expenditure | I78: 2.8% | K78: 5.5% | L78: 7.5%
B79: Primary | C79: Small | D79: Medium FSM | E79: Spend on other staff costs as a percentage of total expenditure | I79: 3.5% | K79: 5.2% | L79: 6.4%
B80: Primary | C80: Small | D80: Medium FSM | E80: Spend on premises (including staff costs) as a percentage of total expenditure | I80: 7.3% | K80: 9.8% | L80: 10.9%
B81: Primary | C81: Small | D81: Medium FSM | E81: Spend on teaching resources as a percentage of total expenditure | F81: 3.1% | G81: 3.7% | H81: 4.8% | I81: 5.2% | J81: 5.7%
B82: Primary | C82: Small | D82: Medium FSM | E82: Spend on energy as a percentage of total expenditure | I82: 1.3% | K82: 1.7% | L82: 1.9%
B83: Primary | C83: Small | D83: Medium FSM | E83: Senior leaders as a percentage of workforce | H83: 9.4% | I83: 10.4% | J83: 11.7% | K83: 14.5% | L83: 16.7%
B84: Primary | C84: Small | D84: Medium FSM | E84: Pupil to teacher ratio | F84: 16.5 | G84: 17.6 | H84: 19.2 | I84: 20.2 | J84: 20.8 | K84: 22.4 | L84: 24.0
B85: Primary | C85: Small | D85: Medium FSM | E85: Pupil to adult ratio | F85: 7.1 | G85: 7.8 | H85: 8.7 | I85: 9.1 | J85: 9.5 | K85: 10.3 | L85: 11.2
B86: Primary | C86: Small | D86: Medium FSM | E86: Average class size | F86: 21.5 | G86: 22.8 | H86: 24.8 | I86: 25.5 | J86: 26.3 | K86: 27.8 | L86: 28.7
A88: 3,735 | B88: Primary | C88: Medium | D88: Medium FSM | E88: PMM
B89: Primary | C89: Medium | D89: Medium FSM | E89: Spend on teaching staff as a percentage of total expenditure | F89: 40.5% | G89: 42.8% | H89: 45.8% | I89: 47.0% | J89: 48.2% | K89: 50.9% | L89: 52.9%
B90: Primary | C90: Medium | D90: Medium FSM | E90: Spend on supply staff as a percentage of total expenditure | H90: 1.6% | I90: 2.1% | J90: 2.6% | K90: 3.9% | L90: 5.3%
B91: Primary | C91: Medium | D91: Medium FSM | E91: Spend on education support staff as a percentage of total expenditure | H91: 16.4% | I91: 17.4% | J91: 18.5% | K91: 21.2% | L91: 23.4%
B92: Primary | C92: Medium | D92: Medium FSM | E92: Spend on administrative and clerical staff as a percentage of total expenditure | I92: 3.1% | K92: 5.8% | L92: 7.5%
B93: Primary | C93: Medium | D93: Medium FSM | E93: Spend on other staff costs as a percentage of total expenditure | I93: 3.6% | K93: 5.2% | L93: 6.4%
B94: Primary | C94: Medium | D94: Medium FSM | E94: Spend on premises (including staff costs) as a percentage of total expenditure | I94: 7.0% | K94: 9.1% | L94: 10.3%
B95: Primary | C95: Medium | D95: Medium FSM | E95: Spend on teaching resources as a percentage of total expenditure | F95: 2.8% | G95: 3.5% | H95: 4.4% | I95: 4.9% | J95: 5.4%
B96: Primary | C96: Medium | D96: Medium FSM | E96: Spend on energy as a percentage of total expenditure | I96: 1.2% | K96: 1.5% | L96: 1.7%
B97: Primary | C97: Medium | D97: Medium FSM | E97: Senior leaders as a percentage of workforce | H97: 7.9% | I97: 8.6% | J97: 9.3% | K97: 11.2% | L97: 13.0%
B98: Primary | C98: Medium | D98: Medium FSM | E98: Pupil to teacher ratio | F98: 18.2 | G98: 19.4 | H98: 20.9 | I98: 21.6 | J98: 22.2 | K98: 23.8 | L98: 25.1
B99: Primary | C99: Medium | D99: Medium FSM | E99: Pupil to adult ratio | F99: 7.8 | G99: 8.4 | H99: 9.3 | I99: 9.6 | J99: 10.0 | K99: 11.0 | L99: 11.7
B100: Primary | C100: Medium | D100: Medium FSM | E100: Average class size | F100: 24.4 | G100: 25.6 | H100: 27.2 | I100: 27.9 | J100: 28.5 | K100: 29.6 | L100: 30.0
A102: 2,027 | B102: Primary | C102: Large | D102: Medium FSM | E102: PLM
B103: Primary | C103: Large | D103: Medium FSM | E103: Spend on teaching staff as a percentage of total expenditure | F103: 40.4% | G103: 42.9% | H103: 46.1% | I103: 47.2% | J103: 48.4% | K103: 51.1% | L103: 53.2%
B104: Primary | C104: Large | D104: Medium FSM | E104: Spend on supply staff as a percentage of total expenditure | H104: 1.5% | I104: 1.9% | J104: 2.5% | K104: 3.9% | L104: 5.3%
B105: Primary | C105: Large | D105: Medium FSM | E105: Spend on education support staff as a percentage of total expenditure | H105: 17.6% | I105: 18.6% | J105: 19.8% | K105: 22.4% | L105: 24.6%
B106: Primary | C106: Large | D106: Medium FSM | E106: Spend on administrative and clerical staff as a percentage of total expenditure | I106: 3.2% | K106: 5.7% | L106: 7.6%
B107: Primary | C107: Large | D107: Medium FSM | E107: Spend on other staff costs as a percentage of total expenditure | I107: 3.4% | K107: 5.1% | L107: 6.3%
B108: Primary | C108: Large | D108: Medium FSM | E108: Spend on premises (including staff costs) as a percentage of total expenditure | I108: 6.6% | K108: 8.5% | L108: 9.9%
B109: Primary | C109: Large | D109: Medium FSM | E109: Spend on teaching resources as a percentage of total expenditure | F109: 2.8% | G109: 3.4% | H109: 4.2% | I109: 4.6% | J109: 5.0%
B110: Primary | C110: Large | D110: Medium FSM | E110: Spend on energy as a percentage of total expenditure | I110: 1.1% | K110: 1.4% | L110: 1.6%
B111: Primary | C111: Large | D111: Medium FSM | E111: Senior leaders as a percentage of workforce | H111: 6.3% | I111: 6.9% | J111: 7.5% | K111: 9.3% | L111: 10.5%
B112: Primary | C112: Large | D112: Medium FSM | E112: Pupil to teacher ratio | F112: 18.8 | G112: 19.8 | H112: 21.3 | I112: 21.9 | J112: 22.5 | K112: 23.9 | L112: 25.2
B113: Primary | C113: Large | D113: Medium FSM | E113: Pupil to adult ratio | F113: 8.0 | G113: 8.7 | H113: 9.4 | I113: 9.8 | J113: 10.2 | K113: 11.1 | L113: 11.8
B114: Primary | C114: Large | D114: Medium FSM | E114: Average class size | F114: 26.1 | G114: 27.1 | H114: 28.3 | I114: 28.8 | J114: 29.1 | K114: 29.8 | L114: 30.1
A116: 214 | B116: Primary | C116: Very small | D116: High FSM | E116: PVSH
B117: Primary | C117: Very small | D117: High FSM | E117: Spend on teaching staff as a percentage of total expenditure | F117: 36.8% | G117: 39.5% | H117: 43.2% | I117: 44.6% | J117: 46.5% | K117: 50.7% | L117: 53.5%
B118: Primary | C118: Very small | D118: High FSM | E118: Spend on supply staff as a percentage of total expenditure | H118: 1.7% | I118: 2.2% | J118: 3.1% | K118: 5.0% | L118: 7.4%
B119: Primary | C119: Very small | D119: High FSM | E119: Spend on education support staff as a percentage of total expenditure | H119: 14.1% | I119: 15.3% | J119: 16.7% | K119: 19.5% | L119: 22.5%
B120: Primary | C120: Very small | D120: High FSM | E120: Spend on administrative and clerical staff as a percentage of total expenditure | I120: 2.9% | K120: 6.0% | L120: 7.5%
B121: Primary | C121: Very small | D121: High FSM | E121: Spend on other staff costs as a percentage of total expenditure | I121: 3.6% | K121: 5.7% | L121: 7.7%
B122: Primary | C122: Very small | D122: High FSM | E122: Spend on premises (including staff costs) as a percentage of total expenditure | I122: 7.5% | K122: 10.5% | L122: 12.4%
B123: Primary | C123: Very small | D123: High FSM | E123: Spend on teaching resources as a percentage of total expenditure | F123: 2.8% | G123: 3.6% | H123: 4.7% | I123: 5.3% | J123: 5.7%
B124: Primary | C124: Very small | D124: High FSM | E124: Spend on energy as a percentage of total expenditure | I124: 1.6% | K124: 2.1% | L124: 2.4%
B125: Primary | C125: Very small | D125: High FSM | E125: Senior leaders as a percentage of workforce | H125: 10.6% | I125: 12.0% | J125: 13.6% | K125: 17.0% | L125: 20.0%
B126: Primary | C126: Very small | D126: High FSM | E126: Pupil to teacher ratio | F126: 10.3 | G126: 12.8 | H126: 14.8 | I126: 15.7 | J126: 16.7 | K126: 19.1 | L126: 21.5
B127: Primary | C127: Very small | D127: High FSM | E127: Pupil to adult ratio | F127: 4.7 | G127: 5.3 | H127: 6.3 | I127: 6.8 | J127: 7.2 | K127: 8.4 | L127: 9.4
B128: Primary | C128: Very small | D128: High FSM | E128: Average class size | F128: 12.3 | G128: 15.0 | H128: 18.0 | I128: 19.3 | J128: 21.0 | K128: 24.0 | L128: 25.9
A130: 370 | B130: Primary | C130: Small | D130: High FSM | E130: PSH
B131: Primary | C131: Small | D131: High FSM | E131: Spend on teaching staff as a percentage of total expenditure | F131: 38.3% | G131: 41.1% | H131: 44.1% | I131: 45.6% | J131: 47.3% | K131: 50.2% | L131: 52.1%
B132: Primary | C132: Small | D132: High FSM | E132: Spend on supply staff as a percentage of total expenditure | H132: 1.9% | I132: 2.5% | J132: 3.1% | K132: 4.9% | L132: 6.3%
B133: Primary | C133: Small | D133: High FSM | E133: Spend on education support staff as a percentage of total expenditure | H133: 16.2% | I133: 17.3% | J133: 18.5% | K133: 21.0% | L133: 23.1%
B134: Primary | C134: Small | D134: High FSM | E134: Spend on administrative and clerical staff as a percentage of total expenditure | I134: 3.5% | K134: 6.2% | L134: 8.1%
B135: Primary | C135: Small | D135: High FSM | E135: Spend on other staff costs as a percentage of total expenditure | I135: 3.5% | K135: 5.4% | L135: 6.5%
B136: Primary | C136: Small | D136: High FSM | E136: Spend on premises (including staff costs) as a percentage of total expenditure | I136: 6.9% | K136: 9.4% | L136: 11.2%
B137: Primary | C137: Small | D137: High FSM | E137: Spend on teaching resources as a percentage of total expenditure | F137: 2.6% | G137: 3.4% | H137: 4.4% | I137: 4.7% | J137: 5.3%
B138: Primary | C138: Small | D138: High FSM | E138: Spend on energy as a percentage of total expenditure | I138: 1.4% | K138: 1.8% | L138: 2.2%
B139: Primary | C139: Small | D139: High FSM | E139: Senior leaders as a percentage of workforce | H139: 9.8% | I139: 10.6% | J139: 11.7% | K139: 13.5% | L139: 15.5%
B140: Primary | C140: Small | D140: High FSM | E140: Pupil to teacher ratio | F140: 14.4 | G140: 15.8 | H140: 17.4 | I140: 18.0 | J140: 18.8 | K140: 20.6 | L140: 21.9
B141: Primary | C141: Small | D141: High FSM | E141: Pupil to adult ratio | F141: 6.2 | G141: 6.8 | H141: 7.7 | I141: 7.9 | J141: 8.2 | K141: 9.2 | L141: 9.8
B142: Primary | C142: Small | D142: High FSM | E142: Average class size | F142: 19.0 | G142: 20.4 | H142: 22.0 | I142: 22.9 | J142: 23.6 | K142: 25.3 | L142: 26.8
A144: 2,197 | B144: Primary | C144: Medium | D144: High FSM | E144: PMH
B145: Primary | C145: Medium | D145: High FSM | E145: Spend on teaching staff as a percentage of total expenditure | F145: 37.7% | G145: 40.2% | H145: 43.2% | I145: 44.3% | J145: 45.5% | K145: 48.6% | L145: 50.7%
B146: Primary | C146: Medium | D146: High FSM | E146: Spend on supply staff as a percentage of total expenditure | H146: 1.6% | I146: 2.1% | J146: 2.7% | K146: 4.3% | L146: 6.1%
B147: Primary | C147: Medium | D147: High FSM | E147: Spend on education support staff as a percentage of total expenditure | H147: 18.4% | I147: 19.4% | J147: 20.6% | K147: 23.5% | L147: 26.0%
B148: Primary | C148: Medium | D148: High FSM | E148: Spend on administrative and clerical staff as a percentage of total expenditure | I148: 3.3% | K148: 6.4% | L148: 8.5%
B149: Primary | C149: Medium | D149: High FSM | E149: Spend on other staff costs as a percentage of total expenditure | I149: 3.4% | K149: 5.2% | L149: 6.6%
B150: Primary | C150: Medium | D150: High FSM | E150: Spend on premises (including staff costs) as a percentage of total expenditure | I150: 6.8% | K150: 9.3% | L150: 10.9%
B151: Primary | C151: Medium | D151: High FSM | E151: Spend on teaching resources as a percentage of total expenditure | F151: 2.7% | G151: 3.3% | H151: 4.2% | I151: 4.6% | J151: 5.0%
B152: Primary | C152: Medium | D152: High FSM | E152: Spend on energy as a percentage of total expenditure | I152: 1.2% | K152: 1.6% | L152: 1.8%
B153: Primary | C153: Medium | D153: High FSM | E153: Senior leaders as a percentage of workforce | H153: 7.6% | I153: 8.3% | J153: 9.0% | K153: 11.1% | L153: 12.6%
B154: Primary | C154: Medium | D154: High FSM | E154: Pupil to teacher ratio | F154: 16.2 | G154: 17.4 | H154: 19.0 | I154: 19.7 | J154: 20.4 | K154: 22.3 | L154: 23.9
B155: Primary | C155: Medium | D155: High FSM | E155: Pupil to adult ratio | F155: 6.8 | G155: 7.3 | H155: 8.1 | I155: 8.4 | J155: 8.7 | K155: 9.5 | L155: 10.2
B156: Primary | C156: Medium | D156: High FSM | E156: Average class size | F156: 22.1 | G156: 23.6 | H156: 25.4 | I156: 26.1 | J156: 26.8 | K156: 28.5 | L156: 29.4
A158: 1,120 | B158: Primary | C158: Large | D158: High FSM | E158: PLH
B159: Primary | C159: Large | D159: High FSM | E159: Spend on teaching staff as a percentage of total expenditure | F159: 38.0% | G159: 40.2% | H159: 43.1% | I159: 44.4% | J159: 45.4% | K159: 48.3% | L159: 50.7%
B160: Primary | C160: Large | D160: High FSM | E160: Spend on supply staff as a percentage of total expenditure | H160: 1.4% | I160: 1.9% | J160: 2.5% | K160: 4.0% | L160: 5.5%
B161: Primary | C161: Large | D161: High FSM | E161: Spend on education support staff as a percentage of total expenditure | H161: 19.5% | I161: 21.0% | J161: 22.0% | K161: 25.0% | L161: 27.2%
B162: Primary | C162: Large | D162: High FSM | E162: Spend on administrative and clerical staff as a percentage of total expenditure | I162: 3.3% | K162: 6.7% | L162: 8.8%
B163: Primary | C163: Large | D163: High FSM | E163: Spend on other staff costs as a percentage of total expenditure | I163: 3.4% | K163: 5.0% | L163: 6.2%
B164: Primary | C164: Large | D164: High FSM | E164: Spend on premises (including staff costs) as a percentage of total expenditure | I164: 6.4% | K164: 8.9% | L164: 10.6%
B165: Primary | C165: Large | D165: High FSM | E165: Spend on teaching resources as a percentage of total expenditure | F165: 2.7% | G165: 3.3% | H165: 4.1% | I165: 4.5% | J165: 4.9%
B166: Primary | C166: Large | D166: High FSM | E166: Spend on energy as a percentage of total expenditure | I166: 1.1% | K166: 1.4% | L166: 1.6%
B167: Primary | C167: Large | D167: High FSM | E167: Senior leaders as a percentage of workforce | H167: 6.3% | I167: 7.0% | J167: 7.7% | K167: 9.3% | L167: 10.6%
B168: Primary | C168: Large | D168: High FSM | E168: Pupil to teacher ratio | F168: 17.0 | G168: 18.3 | H168: 19.8 | I168: 20.4 | J168: 21.2 | K168: 22.9 | L168: 24.4
B169: Primary | C169: Large | D169: High FSM | E169: Pupil to adult ratio | F169: 7.1 | G169: 7.6 | H169: 8.3 | I169: 8.6 | J169: 8.9 | K169: 9.6 | L169: 10.4
B170: Primary | C170: Large | D170: High FSM | E170: Average class size | F170: 24.5 | G170: 25.8 | H170: 27.1 | I170: 27.6 | J170: 28.1 | K170: 29.2 | L170: 29.7
A173: Sample size | B173: Phase | C173: Size | D173: FSM | F173: Red if less than: | G173: Amber if less than: | H173: Dark green if between: | I173: (Median) | J173: and: | K173: Amber if more than: | L173: Red if more than: | N173: Light green for everything else
A174: 59 | B174: Secondary with sixth form | C174: Small | D174: Low FSM | E174: SSSL
B175: Secondary with sixth form | C175: Small | D175: Low FSM | E175: Spend on teaching staff as a percentage of total expenditure | F175: 40.8% | G175: 51.2% | H175: 55.6% | I175: 57.2% | J175: 58.8% | K175: 61.2% | L175: 64.8%
B176: Secondary with sixth form | C176: Small | D176: Low FSM | E176: Spend on supply staff as a percentage of total expenditure | H176: 0.3% | I176: 0.8% | J176: 1.3% | K176: 2.5% | L176: 3.1%
B177: Secondary with sixth form | C177: Small | D177: Low FSM | E177: Spend on education support staff as a percentage of total expenditure | H177: 5.2% | I177: 6.5% | J177: 7.6% | K177: 10.4% | L177: 12.7%
B178: Secondary with sixth form | C178: Small | D178: Low FSM | E178: Spend on administrative and clerical staff as a percentage of total expenditure | I178: 6.5% | K178: 8.2% | L178: 11.4%
B179: Secondary with sixth form | C179: Small | D179: Low FSM | E179: Spend on other staff costs as a percentage of total expenditure | I179: 1.4% | K179: 4.6% | L179: 11.0%
B180: Secondary with sixth form | C180: Small | D180: Low FSM | E180: Spend on premises (including staff costs) as a percentage of total expenditure | I180: 4.9% | K180: 8.4% | L180: 10.5%
B181: Secondary with sixth form | C181: Small | D181: Low FSM | E181: Spend on teaching resources as a percentage of total expenditure | F181: 3.8% | G181: 4.6% | H181: 6.4% | I181: 7.3% | J181: 8.0%
B182: Secondary with sixth form | C182: Small | D182: Low FSM | E182: Spend on energy as a percentage of total expenditure | I182: 1.7% | K182: 2.2% | L182: 2.8%
B183: Secondary with sixth form | C183: Small | D183: Low FSM | E183: Senior leaders as a percentage of workforce | H183: 6.0% | I183: 6.7% | J183: 6.8% | K183: 8.7% | L183: 10.1%
B184: Secondary with sixth form | C184: Small | D184: Low FSM | E184: Pupil to teacher ratio | F184: 11.1 | G184: 12.8 | H184: 15.3 | I184: 16.1 | J184: 16.6 | K184: 17.8 | L184: 19.0
B185: Secondary with sixth form | C185: Small | D185: Low FSM | E185: Pupil to adult ratio | F185: 6.4 | G185: 8.1 | H185: 9.3 | I185: 9.9 | J185: 10.2 | K185: 11.4 | L185: 12.8
B186: Secondary with sixth form | C186: Small | D186: Low FSM | E186: Average class size | F186: 14.0 | G186: 16.6 | H186: 19.1 | I186: 20.0 | J186: 20.5 | K186: 22.0 | L186: 22.9
A188: 304 | B188: Secondary with sixth form | C188: Medium | D188: Low FSM | E188: SSML
B189: Secondary with sixth form | C189: Medium | D189: Low FSM | E189: Spend on teaching staff as a percentage of total expenditure | F189: 50.2% | G189: 53.2% | H189: 56.6% | I189: 58.2% | J189: 59.4% | K189: 62.4% | L189: 64.0%
B190: Secondary with sixth form | C190: Medium | D190: Low FSM | E190: Spend on supply staff as a percentage of total expenditure | H190: 0.7% | I190: 1.0% | J190: 1.2% | K190: 1.9% | L190: 2.6%
B191: Secondary with sixth form | C191: Medium | D191: Low FSM | E191: Spend on education support staff as a percentage of total expenditure | H191: 6.4% | I191: 7.0% | J191: 7.9% | K191: 9.7% | L191: 11.4%
B192: Secondary with sixth form | C192: Medium | D192: Low FSM | E192: Spend on administrative and clerical staff as a percentage of total expenditure | I192: 6.9% | K192: 9.1% | L192: 10.5%
B193: Secondary with sixth form | C193: Medium | D193: Low FSM | E193: Spend on other staff costs as a percentage of total expenditure | I193: 1.5% | K193: 3.4% | L193: 5.7%
B194: Secondary with sixth form | C194: Medium | D194: Low FSM | E194: Spend on premises (including staff costs) as a percentage of total expenditure | I194: 5.5% | K194: 7.6% | L194: 9.5%
B195: Secondary with sixth form | C195: Medium | D195: Low FSM | E195: Spend on teaching resources as a percentage of total expenditure | F195: 4.8% | G195: 5.8% | H195: 7.9% | I195: 8.7% | J195: 9.5%
B196: Secondary with sixth form | C196: Medium | D196: Low FSM | E196: Spend on energy as a percentage of total expenditure | I196: 1.5% | K196: 1.9% | L196: 2.1%
B197: Secondary with sixth form | C197: Medium | D197: Low FSM | E197: Senior leaders as a percentage of workforce | H197: 5.6% | I197: 5.9% | J197: 6.2% | K197: 7.3% | L197: 8.8%
B198: Secondary with sixth form | C198: Medium | D198: Low FSM | E198: Pupil to teacher ratio | F198: 15.5 | G198: 16.1 | H198: 16.9 | I198: 17.3 | J198: 17.6 | K198: 18.5 | L198: 19.3
B199: Secondary with sixth form | C199: Medium | D199: Low FSM | E199: Pupil to adult ratio | F199: 9.3 | G199: 9.9 | H199: 10.4 | I199: 10.8 | J199: 11.1 | K199: 11.8 | L199: 12.5
B200: Secondary with sixth form | C200: Medium | D200: Low FSM | E200: Average class size | F200: 19.7 | G200: 20.3 | H200: 21.2 | I200: 21.6 | J200: 22.0 | K200: 22.9 | L200: 23.7
A202: 206 | B202: Secondary with sixth form | C202: Large | D202: Low FSM | E202: SSLL
B203: Secondary with sixth form | C203: Large | D203: Low FSM | E203: Spend on teaching staff as a percentage of total expenditure | F203: 51.0% | G203: 53.2% | H203: 56.6% | I203: 58.5% | J203: 59.8% | K203: 61.8% | L203: 63.1%
B204: Secondary with sixth form | C204: Large | D204: Low FSM | E204: Spend on supply staff as a percentage of total expenditure | H204: 0.7% | I204: 1.0% | J204: 1.2% | K204: 1.9% | L204: 2.6%
B205: Secondary with sixth form | C205: Large | D205: Low FSM | E205: Spend on education support staff as a percentage of total expenditure | H205: 7.2% | I205: 8.3% | J205: 8.9% | K205: 10.5% | L205: 11.5%
B206: Secondary with sixth form | C206: Large | D206: Low FSM | E206: Spend on administrative and clerical staff as a percentage of total expenditure | I206: 6.5% | K206: 8.8% | L206: 10.9%
B207: Secondary with sixth form | C207: Large | D207: Low FSM | E207: Spend on other staff costs as a percentage of total expenditure | I207: 1.3% | K207: 2.6% | L207: 5.0%
B208: Secondary with sixth form | C208: Large | D208: Low FSM | E208: Spend on premises (including staff costs) as a percentage of total expenditure | I208: 5.5% | K208: 7.5% | L208: 9.3%
B209: Secondary with sixth form | C209: Large | D209: Low FSM | E209: Spend on teaching resources as a percentage of total expenditure | F209: 4.9% | G209: 5.9% | H209: 7.1% | I209: 8.0% | J209: 9.0%
B210: Secondary with sixth form | C210: Large | D210: Low FSM | E210: Spend on energy as a percentage of total expenditure | I210: 1.5% | K210: 1.8% | L210: 2.0%
B211: Secondary with sixth form | C211: Large | D211: Low FSM | E211: Senior leaders as a percentage of workforce | H211: 5.2% | I211: 5.6% | J211: 5.9% | K211: 6.6% | L211: 8.3%
B212: Secondary with sixth form | C212: Large | D212: Low FSM | E212: Pupil to teacher ratio | F212: 15.7 | G212: 16.2 | H212: 16.9 | I212: 17.2 | J212: 17.5 | K212: 18.1 | L212: 19.0
B213: Secondary with sixth form | C213: Large | D213: Low FSM | E213: Pupil to adult ratio | F213: 9.5 | G213: 9.9 | H213: 10.4 | I213: 10.8 | J213: 11.0 | K213: 11.6 | L213: 12.2
B214: Secondary with sixth form | C214: Large | D214: Low FSM | E214: Average class size | F214: 19.9 | G214: 20.6 | H214: 21.3 | I214: 21.6 | J214: 22.0 | K214: 22.9 | L214: 23.5
A216: 36 | B216: Secondary without sixth form | C216: Small | D216: Low FSM | E216: SSL
B217: Secondary without sixth form | C217: Small | D217: Low FSM | E217: Spend on teaching staff as a percentage of total expenditure | F217: 48.5% | G217: 53.7% | H217: 56.5% | I217: 56.9% | J217: 57.6% | K217: 60.2% | L217: 65.4%
... 313 more rows

Sheet RAG_Calculation (hidden)
A2: RAG ratings for each school
C5: =IF(C30="Primary","P",IF(C30="Secondary with sixth form","SS",IF(C30="Secondary without sixth form","S",IF(C30="Special","SP",IF(C30="Alternative provision","AP",IF(C30="All-through","AT",IF(C30="Nursery","N"))))))) -> SS
C6: =C5& IF($H30="very small","VS",IF($H30="small","S",IF($H30="medium","M",IF($H30="large","L"))))& IF($I30="low levels of FSM","L",IF($I30="medium levels of FSM","M",IF($I30="high levels of FSM","H"))) -> SSML
C7: =C5& IF(AND(C5="SS",$G30="in London"),"Lo",IF($G30="in London","L",IF($G30="outside London","NL"))) -> SSNL
C8: 1 | D8: 2 | E8: 3 | F8: 4 | G8: 5 | H8: 6 | I8: 7
A9: Spend on teaching staff as a percentage of total expenditure | B9: 1 | C9: =IF(OR($C$5="P",$C$5="SS",$C$5="S"),INDEX(INDIRECT($C$6),$B9,C$8), IF(OR($C$5="N",$C$5="AP",$C$5="AT",$C$5="SP"),INDEX(INDIRECT($C$7),$B9,C$8))) -> 50.2% | D9: =IF(OR($C$5="P",$C$5="SS",$C$5="S"),INDEX(INDIRECT($C$6),$B9,D$8), IF(OR($C$5="N",$C$5="AP",$C$5="AT",$C$5="SP"),INDEX(INDIRECT($C$7),$B9,D$8))) -> 53.2% | E9: 56.6% | F9: 58.2% | G9: 59.4% | H9: 62.4% | I9: 64.0% | J9: 1
A10: Spend on supply staff as a percentage of total expenditure | B10: 2 | E10: =IF(OR($C$5="P",$C$5="SS",$C$5="S"),INDEX(INDIRECT($C$6),$B10,E$8), IF(OR($C$5="N",$C$5="AP",$C$5="AT",$C$5="SP"),INDEX(INDIRECT($C$7),$B10,E$8))) -> 0.7% | F10: 1.0% | G10: 1.2% | H10: 1.9% | I10: 2.6% | J10: 2
A11: Spend on education support staff as a percentage of total expenditure | B11: 3 | E11: 6.4% | F11: 7.0% | G11: 7.9% | H11: 9.7% | I11: 11.4% | J11: 3
A12: Spend on administrative and clerical staff as a percentage of total expenditure | B12: 4 | F12: =IF(OR($C$5="P",$C$5="SS",$C$5="S"),INDEX(INDIRECT($C$6),$B12,F$8), IF(OR($C$5="N",$C$5="AP",$C$5="AT",$C$5="SP"),INDEX(INDIRECT($C$7),$B12,F$8))) -> 6.9% | H12: =IF(OR($C$5="P",$C$5="SS",$C$5="S"),INDEX(INDIRECT($C$6),$B12,H$8), IF(OR($C$5="N",$C$5="AP",$C$5="AT",$C$5="SP"),INDEX(INDIRECT($C$7),$B12,H$8))) -> 9.1% | I12: =IF(OR($C$5="P",$C$5="SS",$C$5="S"),INDEX(INDIRECT($C$6),$B12,I$8), IF(OR($C$5="N",$C$5="AP",$C$5="AT",$C$5="SP"),INDEX(INDIRECT($C$7),$B12,I$8))) -> 10.5% | J12: 4
A13: Spend on other staff costs as a percentage of total expenditure | B13: 5 | F13: 1.5% | H13: =IF(OR($C$5="P",$C$5="SS",$C$5="S"),INDEX(INDIRECT($C$6),$B13,H$8), IF(OR($C$5="N",$C$5="AP",$C$5="AT",$C$5="SP"),INDEX(INDIRECT($C$7),$B13,H$8))) -> 3.4% | I13: =IF(OR($C$5="P",$C$5="SS",$C$5="S"),INDEX(INDIRECT($C$6),$B13,I$8), IF(OR($C$5="N",$C$5="AP",$C$5="AT",$C$5="SP"),INDEX(INDIRECT($C$7),$B13,I$8))) -> 5.7% | J13: 5
A14: Spend on premises (including staff costs) as a percentage of total expenditure | B14: 6 | F14: 5.5% | H14: =IF(OR($C$5="P",$C$5="SS",$C$5="S"),INDEX(INDIRECT($C$6),$B14,H$8), IF(OR($C$5="N",$C$5="AP",$C$5="AT",$C$5="SP"),INDEX(INDIRECT($C$7),$B14,H$8))) -> 7.6% | I14: 9.5% | J14: 6
A15: Spend on teaching resources as a percentage of total expenditure | B15: 7 | C15: =IF(OR($C$5="P",$C$5="SS",$C$5="S"),INDEX(INDIRECT($C$6),$B15,C$8), IF(OR($C$5="N",$C$5="AP",$C$5="AT",$C$5="SP"),INDEX(INDIRECT($C$7),$B15,C$8))) -> 4.8% | D15: =IF(OR($C$5="P",$C$5="SS",$C$5="S"),INDEX(INDIRECT($C$6),$B15,D$8), IF(OR($C$5="N",$C$5="AP",$C$5="AT",$C$5="SP"),INDEX(INDIRECT($C$7),$B15,D$8))) -> 5.8% | E15: =IF(OR($C$5="P",$C$5="SS",$C$5="S"),INDEX(INDIRECT($C$6),$B15,E$8), IF(OR($C$5="N",$C$5="AP",$C$5="AT",$C$5="SP"),INDEX(INDIRECT($C$7),$B15,E$8))) -> 7.9% | F15: =IF(OR($C$5="P",$C$5="SS",$C$5="S"),INDEX(INDIRECT($C$6),$B15,F$8), IF(OR($C$5="N",$C$5="AP",$C$5="AT",$C$5="SP"),INDEX(INDIRECT($C$7),$B15,F$8))) -> 8.7% | G15: =IF(OR($C$5="P",$C$5="SS",$C$5="S"),INDEX(INDIRECT($C$6),$B15,G$8), IF(OR($C$5="N",$C$5="AP",$C$5="AT",$C$5="SP"),INDEX(INDIRECT($C$7),$B15,G$8))) -> 9.5% | J15: 7
A16: Spend on energy as a percentage of total expenditure | B16: 8 | F16: 1.5% | H16: 1.9% | I16: 2.1% | J16: 8
A17: Senior leaders as a percentage of workforce | B17: 9 | E17: =IF(OR($C$5="P",$C$5="SS",$C$5="S"),INDEX(INDIRECT($C$6),$B17,E$8), IF(OR($C$5="N",$C$5="AP",$C$5="AT",$C$5="SP"),INDEX(INDIRECT($C$7),$B17,E$8))) -> 5.6% | F17: 5.9% | G17: =IF(OR($C$5="P",$C$5="SS",$C$5="S"),INDEX(INDIRECT($C$6),$B17,G$8), IF(OR($C$5="N",$C$5="AP",$C$5="AT",$C$5="SP"),INDEX(INDIRECT($C$7),$B17,G$8))) -> 6.2% | H17: 7.3% | I17: 8.8% | J17: 9
A18: Pupil to teacher ratio | B18: 10 | C18: =IF(OR($C$5="P",$C$5="SS",$C$5="S"),INDEX(INDIRECT($C$6),$B18,C$8), IF(OR($C$5="N",$C$5="AP",$C$5="AT",$C$5="SP"),INDEX(INDIRECT($C$7),$B18,C$8))) -> 15.5 | D18: =IF(OR($C$5="P",$C$5="SS",$C$5="S"),INDEX(INDIRECT($C$6),$B18,D$8), IF(OR($C$5="N",$C$5="AP",$C$5="AT",$C$5="SP"),INDEX(INDIRECT($C$7),$B18,D$8))) -> 16.1 | E18: =IF(OR($C$5="P",$C$5="SS",$C$5="S"),INDEX(INDIRECT($C$6),$B18,E$8), IF(OR($C$5="N",$C$5="AP",$C$5="AT",$C$5="SP"),INDEX(INDIRECT($C$7),$B18,E$8))) -> 16.9 | F18: 17.3 | G18: =IF(OR($C$5="P",$C$5="SS",$C$5="S"),INDEX(INDIRECT($C$6),$B18,G$8), IF(OR($C$5="N",$C$5="AP",$C$5="AT",$C$5="SP"),INDEX(INDIRECT($C$7),$B18,G$8))) -> 17.6 | H18: 18.5 | I18: 19.3 | J18: 10
A19: Pupil to adult ratio | B19: 11 | C19: =IF(OR($C$5="P",$C$5="SS",$C$5="S"),INDEX(INDIRECT($C$6),$B19,C$8), IF(OR($C$5="N",$C$5="AP",$C$5="AT",$C$5="SP"),INDEX(INDIRECT($C$7),$B19,C$8))) -> 9.3 | D19: =IF(OR($C$5="P",$C$5="SS",$C$5="S"),INDEX(INDIRECT($C$6),$B19,D$8), IF(OR($C$5="N",$C$5="AP",$C$5="AT",$C$5="SP"),INDEX(INDIRECT($C$7),$B19,D$8))) -> 9.9 | E19: =IF(OR($C$5="P",$C$5="SS",$C$5="S"),INDEX(INDIRECT($C$6),$B19,E$8), IF(OR($C$5="N",$C$5="AP",$C$5="AT",$C$5="SP"),INDEX(INDIRECT($C$7),$B19,E$8))) -> 10.4 | F19: 10.8 | G19: =IF(OR($C$5="P",$C$5="SS",$C$5="S"),INDEX(INDIRECT($C$6),$B19,G$8), IF(OR($C$5="N",$C$5="AP",$C$5="AT",$C$5="SP"),INDEX(INDIRECT($C$7),$B19,G$8))) -> 11.1 | H19: 11.8 | I19: 12.5 | J19: 11
A20: Average class size | B20: 12 | C20: =IF(OR($C$5="P",$C$5="SS",$C$5="S"),INDEX(INDIRECT($C$6),$B20,C$8), IF(OR($C$5="N",$C$5="AP",$C$5="SP"),"",IF($C$5="AT",INDEX(INDIRECT($C$7),$B20,C$8)))) -> 19.7 | D20: 20.3 | E20: 21.2 | F20: 21.6 | G20: 22.0 | H20: 22.9 | I20: 23.7 | J20: 12
A21: Average teacher cost | B21: 13 | C21: =IF(OR($C$5="P",$C$5="SS",$C$5="S"),INDEX(INDIRECT($C$7),1,C$8), IF(OR($C$5="N",$C$5="AP",$C$5="SP"),INDEX(INDIRECT($C$7),$B20,C$8), IF($C$5="AT",INDEX(INDIRECT($C$7),$B21,C$8)))) -> £49,281 | D21: =IF(OR($C$5="P",$C$5="SS",$C$5="S"),INDEX(INDIRECT($C$7),1,D$8), IF(OR($C$5="N",$C$5="AP",$C$5="SP"),INDEX(INDIRECT($C$7),$B20,D$8), IF($C$5="AT",INDEX(INDIRECT($C$7),$B21,D$8)))) -> £51,735 | E21: £54,105 | F21: £55,075 | G21: £56,178 | H21: £59,004 | I21: £61,846 | J21: 13
A26: Information for the 'RAG rating data for your school' look ups
C28: School information from dashboard | G28: Info for comparison description | N28: Text for Dashboard
C29: Phase | D29: Pupil | E29: Region | F29: FSM | N29: 1 | O29: 2 | Q29: RAG sheet FLAG
C30: Secondary with sixth form | D30: 1343 | E30: East of England | F30: 0.059 | G30: =IF(E30="","",IF(OR(E30="Inner London",E30="Outer London"),"in London","outside London")) -> outside London | H30: =IF(AND(C30="Primary",D30<=$C$33),"very small",IF(AND(C30="Primary",D30<=$D$33,D30>$C$33),"small",IF(AND(C30="Primary",D30>$D$33,D30<=$E$33),"medium",IF(AND(C30="Primary",D30>$E$33),"large", IF(AND(C30="Secondary with sixth form",D30<=$D$34),"small",IF(AND(C30="Secondary with sixth form",D30>$D$34,D30<=$E$34),"medium",IF(AND(C30="Secondary with sixth form",D30>$E$34),"large", IF(AND(C30="Secondary without sixth form",D30<=$D$35),"small",IF(AND(C30="Secondary without sixth form",D30>$D$35,D30<=$E$35),"medium",IF(AND(C30="Secondary without sixth form",D30>$E$35),"large","")))))))))) -> medium | I30: =IF(AND(C30="Primary",F30<=$C$38),"low levels of FSM",IF(AND(C30="Primary",F30>$C$38,F30<=$D$38),"medium levels of FSM",IF(AND(C30="Primary",F30>$D$38),"high levels of FSM", IF(AND(C30="Secondary with sixth form",F30<=$C$39),"low levels of FSM",IF(AND(C30="Secondary with sixth form",F30>$C$39,F30<=$D$39),"medium levels of FSM",IF(AND(C30="Secondary with sixth form",F30>$D$39),"high levels of FSM", IF(AND(C30="Secondary without sixth form",F30<=$C$40),"low levels of FSM",IF(AND(C30="Secondary without sixth form",F30>$C$40,F30<=$D$40),"medium levels of FSM",IF(AND(C30="Secondary without sixth form",F30>$D$40),"high levels of FSM",""))))))))) -> low levels of FSM | J30: =IF(C30="Primary","a primary school",IF(C30="Secondary with sixth form","a secondary school with a sixth form",IF(C30="Secondary without sixth form","a secondary school without a sixth form",IF(C30="Special","a special school",IF(C30="Alternative provision","an alternative provision school",IF(C30="All-through","an all-through school",IF(C30="Nursery","a nursery school",""))))))) -> a secondary school with a sixth form | K30: =IF(AND(C30="Primary",H30="very small"),$C$33&" or fewer pupils", IF(AND(C30="Primary",H30="small"),"between "&$C$33+1&" and "&$D$33&" pupils", IF(AND(C30="Primary",H30="medium"),"between "&$D$33+1&" and "&$E$33&" pupils", IF(AND(C30="Primary",H30="large"),"more than "&$E$33&" pupils", IF(AND(C30="Secondary with sixth form",H30="small"),$D$34&" or fewer pupils", IF(AND(C30="Secondary with sixth form",H30="medium"),"between "&$D$34+1&" and "&$E$34&" pupils", IF(AND(C30="Secondary with sixth form",H30="large"),"more than "&$E$34&" pupils", IF(AND(C30="Secondary without sixth form",H30="small"),$D$35&" or fewer pupils", IF(AND(C30="Secondary without sixth form",H30="medium"),"between "&$D$35+1&" and "&$E$35&" pupils", IF(AND(C30="Secondary without sixth form",H30="large"),"more than "&$E$35&" pupils","")))))))))) -> between 840 and 1348 pupils | L30: =IF(AND(C30="Primary",I30="low levels of FSM"),"less than "&$E$38&" of pupils", IF(AND(C30="Primary",I30="medium levels of FSM"),"between "&$E$38&" and "&$F$38&" of pupils", IF(AND(C30="Primary",I30="high levels of FSM"),"more than "&$F$38&" of pupils", IF(AND(C30="Secondary with sixth form",I30="low levels of FSM"),"less than "&$E$39&" of pupils", IF(AND(C30="Secondary with sixth form",I30="medium levels of FSM"),"between "&$E$39&" and "&$F$39&" of pupils", IF(AND(C30="Secondary with sixth form",I30="high levels of FSM"),"more than "&$F$39&" of pupils", IF(AND(C30="Secondary without sixth form",I30="low levels of FSM"),"less than "&$E$40&" of pupils", IF(AND(C30="Secondary without sixth form",I30="medium levels of FSM"),"between "&$E$40&" and "&$F$40&" of pupils", IF(AND(C30="Secondary without sixth form",I30="high levels of FSM"),"more than "&$F$40&" of pupils",""))))))))) -> less than 6.3% of pupils | N30: =IF(OR(C30="Primary",C30="Secondary with sixth form",C30="Secondary without sixth form"),LOWER("- a "&H30&" "&C30&" with ")&I30,"- "&LOWER(C30)&" schools") -> - a medium secondary with sixth form with low levels of FSM | O30: =LOWER("- "&J30&" ")&G30&"(for average teacher cost only)" -> - a secondary school with a sixth form outside London(for average teacher cost only) | Q30: =IF(OR(C30="All-through",C30="Special",C30="Alternative provision",C30="Nursery"),1,0) -> 0
C32: Very small | D32: Small | E32: Medium
A33: Primary | C33: 100 | D33: 173 | E33: 389
A34: Secondary with sixth form | D34: 839 | E34: 1348
A35: Secondary without sixth form | D35: 570 | E35: 980
C37: Low | D37: Medium | E37: Low | F37: Medium
A38: Primary | C38: 0.062 | D38: 0.208 | E38: =(C38*100)&"%" -> 6.2% | F38: 20.8%
A39: Secondary with sixth form | C39: 0.063 | D39: 0.176 | E39: 6.3% | F39: 17.6%
A40: Secondary without sixth form | C40: 0.096 | D40: 0.233 | E40: 9.6% | F40: 23.3%
A45: Temporary data
A48: Schools Data | C48: Temp | D48: RAG | F48: Checker
A49: Spend on teaching staff as a percentage of total expenditure | C49: 0.5941734417 | D49: =IF(F49="Not Ready","", IF(C49<=RAG_Calculation!C9,Lowest10, IF(AND(C49>RAG_Calculation!C9,C49<=RAG_Calculation!D9),Lowest20, IF(AND(C49>RAG_Calculation!D9,C49<=RAG_Calculation!E9),Inline, IF(AND(C49>RAG_Calculation!E9,C49<=RAG_Calculation!G9),Middle20, IF(AND(C49>RAG_Calculation!G9,C49<=RAG_Calculation!H9),Inline, IF(AND(C49>RAG_Calculation!H9,C49<=RAG_Calculation!I9),Highest20, IF(C49>RAG_Calculation!I9,Highest10,"")))))))) -> Broadly in line with similar schools | F49: =IF(OR(C30="",D30="",E30="",F30=""),"Not Ready","Ready") -> Ready
A50: Spend on supply staff as a percentage of total expenditure | C50: 0.004742547425 | D50: =IF(F49="Not Ready","", IF(C50<=RAG_Calculation!E10,Inline, IF(AND(C50>RAG_Calculation!E10,C50<=RAG_Calculation!G10),Middle20, IF(AND(C50>RAG_Calculation!G10,C50<=RAG_Calculation!H10),Inline, IF(AND(C50>RAG_Calculation!H10,C50<=RAG_Calculation!I10),Highest20, IF(C50>RAG_Calculation!I10,Highest10,"")))))) -> Broadly in line with similar schools
A51: Spend on education support staff as a percentage of total expenditure | C51: 0.1212737127 | D51: =IF(F49="Not Ready","", IF(C51<=RAG_Calculation!E11,Inline, IF(AND(C51>RAG_Calculation!E11,C51<=RAG_Calculation!G11),Middle20, IF(AND(C51>RAG_Calculation!G11,C51<=RAG_Calculation!H11),Inline, IF(AND(C51>RAG_Calculation!H11,C51<=RAG_Calculation!I11),Highest20, IF(C51>RAG_Calculation!I11,Highest10,"")))))) -> Highest 10% of similar schools
A52: Spend on administrative and clerical staff as a percentage of total expenditure | C52: 0.08279132791 | D52: =IF(F49="Not Ready","", IF(C52<=RAG_Calculation!H12,Inline, IF(AND(C52>RAG_Calculation!H12,C52<=RAG_Calculation!I12),Highest20, IF(C52>RAG_Calculation!I12,Highest10,"")))) -> Broadly in line with similar schools
A53: Spend on other staff costs as a percentage of total expenditure | C53: 0.00325203252 | D53: =IF(F49="Not Ready","", IF(C53<=RAG_Calculation!H13,Inline, IF(AND(C53>RAG_Calculation!H13,C53<=RAG_Calculation!I13),Highest20, IF(C53>RAG_Calculation!I13,Highest10,"")))) -> Broadly in line with similar schools
A54: Spend on premises (including staff costs) as a percentage of total expenditure | C54: 0.06260162602 | D54: =IF(F49="Not Ready","", IF(C54<=RAG_Calculation!H14,Inline, IF(AND(C54>RAG_Calculation!H14,C54<=RAG_Calculation!I14),Highest20, IF(C54>RAG_Calculation!I14,Highest10,"")))) -> Broadly in line with similar schools
A55: Spend on teaching resources as a percentage of total expenditure | C55: 0.04701897019 | D55: =IF(F49="Not Ready","", IF(C55<=RAG_Calculation!C15,Lowest10, IF(AND(C55>RAG_Calculation!C15,C55<=RAG_Calculation!D15),Lowest20, IF(AND(C55>RAG_Calculation!D15,C55<=RAG_Calculation!E15),Inline, IF(AND(C55>RAG_Calculation!E15,C55<=RAG_Calculation!G15),Middle20, IF(C55>RAG_Calculation!G15,Inline,"")))))) -> Lowest 10% of similar schools
A56: Spend on energy as a percentage of total expenditure | C56: 0.02276422764 | D56: =IF(F49="Not Ready","", IF(C56<=RAG_Calculation!H16,Inline, IF(AND(C56>RAG_Calculation!H16,C56<=RAG_Calculation!I16),Highest20, IF(C56>RAG_Calculation!I16,Highest10,"")))) -> Highest 10% of similar schools
A57: Other spending as a percentage of total expenditure (balancing line) | C57: 0.06138211382 | D57: =IF(F49="Not Ready","","N/A") -> N/A
A59: In-year balance as a percentage of total income | C59: -0.01863354037 | D59: =IF(F49="Not Ready","", IF(C59<=-0.05,High, IF(AND(C59>-0.05,C59<0),Medium, IF(C59>=0,Low,"")))) -> Medium risk
A60: Revenue reserve as a percentage of total income | C60: 0.0347826087 | D60: =IF(F49="Not Ready","", IF(C60<=-0.05,High, IF(AND(C60>-0.05,C60<0),Medium, IF(C60>=0,Low,"")))) -> Low risk
A62: Average teacher cost (£) | C62: £62,357.79 | D62: =IF(F49="Not Ready","", IF(C62<=RAG_Calculation!C21,Lowest10, IF(AND(C62>RAG_Calculation!C21,C62<=RAG_Calculation!D21),Lowest20, IF(AND(C62>RAG_Calculation!D21,C62<=RAG_Calculation!E21),Inline, IF(AND(C62>RAG_Calculation!E21,C62<=RAG_Calculation!G21),Middle20, IF(AND(C62>RAG_Calculation!G21,C62<=RAG_Calculation!H21),Inline, IF(AND(C62>RAG_Calculation!H21,C62<=RAG_Calculation!I21),Highest20, IF(C62>RAG_Calculation!I21,Highest10,"")))))))) -> Highest 10% of similar schools
A63: Senior leaders as a percentage of workforce | C63: 0.08647526807 | D63: =IF(F49="Not Ready","", IF(C63<=RAG_Calculation!E17,Inline, IF(AND(C63>RAG_Calculation!E17,C63<=RAG_Calculation!G17),Middle20, IF(AND(C63>RAG_Calculation!G17,C63<=RAG_Calculation!H17),Inline, IF(AND(C63>RAG_Calculation!H17,C63<=RAG_Calculation!I17),Highest20, IF(C63>RAG_Calculation!I17,Highest10,"")))))) -> Highest 20% of similar schools
A64: Pupil to teacher ratio | C64: 19.09840728 | D64: =IF(F49="Not Ready","", IF(C64<=RAG_Calculation!C18,Lowest10, IF(AND(C64>RAG_Calculation!C18,C64<=RAG_Calculation!D18),Lowest20, IF(AND(C64>RAG_Calculation!D18,C64<=RAG_Calculation!E18),Inline, IF(AND(C64>RAG_Calculation!E18,C64<=RAG_Calculation!G18),Middle20, IF(AND(C64>RAG_Calculation!G18,C64<=RAG_Calculation!H18),Inline, IF(AND(C64>RAG_Calculation!H18,C64<=RAG_Calculation!I18),Highest20, IF(C64>RAG_Calculation!I18,Highest10,"")))))))) -> Highest 20% of similar schools
A65: Pupil to adult ratio | C65: 11.6136285 | D65: =IF(F49="Not Ready","", IF(C65<=RAG_Calculation!C19,Lowest10, IF(AND(C65>RAG_Calculation!C19,C65<=RAG_Calculation!D19),Lowest20, IF(AND(C65>RAG_Calculation!D19,C65<=RAG_Calculation!E19),Inline, IF(AND(C65>RAG_Calculation!E19,C65<=RAG_Calculation!G19),Middle20, IF(AND(C65>RAG_Calculation!G19,C65<=RAG_Calculation!H19),Inline, IF(AND(C65>RAG_Calculation!H19,C65<=RAG_Calculation!I19),Highest20, IF(C65>RAG_Calculation!I19,Highest10,"")))))))) -> Broadly in line with similar schools
A66: Teacher contact ratio (less than 1.0) | D66: =IF(F49="Not Ready","", IF(C66<=0.7,MuchLower, IF(AND(C66>0.7,C66<=0.74),Lower, IF(AND(C66>0.74,C66<=0.8),Inline2, IF(AND(C66>0.8,C66<=0.82),Higher, IF(C66>0.82,Muchhigher,"")))))) -> Much lower than recommended
A67: Predicted percentage pupil number change in 3-5 years | C67: 0.055 | D67: =IF(F49="Not Ready","", IF(C67<=-0.1,High, IF(AND(C67>-0.1,C67<=-0.02),Medium, IF(C67>=-0.02,Low,"")))) -> Low risk
A68: Average class size | C68: 21.5 | D68: =IF(F49="Not Ready","", IF(C68<=RAG_Calculation!C20,Lowest10, IF(AND(C68>RAG_Calculation!C20,C68<=RAG_Calculation!D20),Lowest20, IF(AND(C68>RAG_Calculation!D20,C68<=RAG_Calculation!E20),Inline, IF(AND(C68>RAG_Calculation!E20,C68<=RAG_Calculation!G20),Middle20, IF(AND(C68>RAG_Calculation!G20,C68<=RAG_Calculation!H20),Inline, IF(AND(C68>RAG_Calculation!H20,C68<=RAG_Calculation!I20),Highest20, IF(C68>RAG_Calculation!I20,Highest10,"")))))))) -> Middle 20% of similar schools
A72: RAG rating text for dashboard
A74: Lowest 10% of similar schools | B74: Much lower than recommended
A75: Lowest 20% of similar schools | B75: Lower than recommended
A76: Broadly in line with similar schools | B76: Broadly in line with recommendations
A77: Middle 20% of similar schools | B77: Higher than recommended
A78: Highest 20% of similar schools | B78: Much higher than recommended
A79: Highest 10% of similar schools
B80: Inadequate
B81: Requires Improvement
A82: High risk | B82: Good
A83: Medium risk | B83: Outstanding
A84: Low risk
B85: Well below average
B86: Below average
B87: Average or above average
B88: Well above average
A91: Primary
A92: Secondary with sixth form
A93: Secondary without sixth form
A94: All-through
